Document Date,Purchase Order No,Line Item No,Supplier ID,Supplier Name,Pro Class,Pro Class Description,Description of Goods (Purpose of expenditure look up),Service/Department   (SAP Hierarchy Position),Expense Area (cost centre desc),Net Order Value Over 5000.00 (line item value shown here),GL Code,Cost Centre/WBS
06/07/2020,ZAV679939,1,12402,VeryPC Ltd,270000,Information Communication Technology  ,Information and Communications Technology,Corporate and Support Services,IT AVA Non - SLA,"5,220.00",402001,13001
06/07/2020,ZAV679940,1,3655,Exertis Micro-P,210000,Furniture & Soft Furnishings  ,Furniture and Equipment,Corporate and Support Services,IT AVA Non - SLA,"2,807.88",400105,13001
06/07/2020,ZAV679940,2,3655,Exertis Micro-P,210000,Furniture & Soft Furnishings  ,Furniture and Equipment,Corporate and Support Services,IT AVA Non - SLA,"10,479.60",400105,13001
09/07/2020,ZAV680153,1,3655,Exertis Micro-P,210000,Furniture & Soft Furnishings  ,Furniture and Equipment,Corporate and Support Services,IT AVA Non - SLA,211.99,400105,13001
09/07/2020,ZAV680153,2,3655,Exertis Micro-P,210000,Furniture & Soft Furnishings  ,Furniture and Equipment,Corporate and Support Services,IT AVA Non - SLA,"8,093.34",400105,13001
17/07/2020,ZAV680387,1,12351,Getech,270000,Information Communication Technology  ,Information and Communications Technology,Corporate and Support Services,IT AVA Non - SLA,"15,200.00",402001,13001
17/07/2020,ZAV680387,2,12351,Getech,270000,Information Communication Technology  ,Information and Communications Technology,Corporate and Support Services,IT AVA Non - SLA,"1,700.00",402001,13001
17/07/2020,ZAV680387,3,12351,Getech,270000,Information Communication Technology  ,Information and Communications Technology,Corporate and Support Services,IT AVA Non - SLA,500.00,402001,13001
17/07/2020,ZAV680387,4,12351,Getech,270000,Information Communication Technology  ,Information and Communications Technology,Corporate and Support Services,IT AVA Non - SLA,140.00,402001,13001
17/07/2020,ZAV680392,1,12351,Getech,270000,Information Communication Technology  ,Information and Communications Technology,Corporate and Support Services,IT AVA Non - SLA,510.00,402001,13001
17/07/2020,ZAV680392,2,12351,Getech,270000,Information Communication Technology  ,Information and Communications Technology,Corporate and Support Services,IT AVA Non - SLA,"5,250.00",402001,13001
17/07/2020,ZAV680392,3,12351,Getech,270000,Information Communication Technology  ,Information and Communications Technology,Corporate and Support Services,IT AVA Non - SLA,450.00,402001,13001
17/07/2020,ZAV680392,4,12351,Getech,270000,Information Communication Technology  ,Information and Communications Technology,Corporate and Support Services,IT AVA Non - SLA,150.00,402001,13001
28/07/2020,ZAV680727,1,1162,RM Education plc,181800,Environmental Services Technical Equipment ,Furniture and Equipment,Corporate and Support Services,IT AVA Service,"24,060.84",400110,11417
28/07/2020,ZAV680727,2,1162,RM Education plc,181800,Environmental Services Technical Equipment ,Furniture and Equipment,Corporate and Support Services,IT AVA Service,12.00,400110,11417
28/07/2020,ZAV680781,1,12402,VeryPC Ltd,181800,Environmental Services Technical Equipment ,Furniture and Equipment,Corporate and Support Services,IT AVA Non - SLA,"5,655.00",400110,13001
28/07/2020,ZAV680783,1,12351,Getech,270000,Information Communication Technology  ,Information and Communications Technology,Corporate and Support Services,IT AVA Non - SLA,"2,040.00",402001,13001
28/07/2020,ZAV680783,2,12351,Getech,270000,Information Communication Technology  ,Information and Communications Technology,Corporate and Support Services,IT AVA Non - SLA,"21,000.00",402001,13001
28/07/2020,ZAV680783,3,12351,Getech,270000,Information Communication Technology  ,Information and Communications Technology,Corporate and Support Services,IT AVA Non - SLA,"1,800.00",402001,13001
28/07/2020,ZAV680783,4,12351,Getech,270000,Information Communication Technology  ,Information and Communications Technology,Corporate and Support Services,IT AVA Non - SLA,600.00,402001,13001
28/07/2020,ZAV680783,5,12351,Getech,270000,Information Communication Technology  ,Information and Communications Technology,Corporate and Support Services,IT AVA Non - SLA,"3,300.00",402001,13001
30/07/2020,ZAV680837,1,5535,Elementary Technology Ltd,210000,Furniture & Soft Furnishings  ,Furniture and Equipment,Corporate and Support Services,IT AVA Non - SLA,"9,596.00",400105,13001
30/07/2020,ZAV680837,2,5535,Elementary Technology Ltd,210000,Furniture & Soft Furnishings  ,Furniture and Equipment,Corporate and Support Services,IT AVA Non - SLA,436.00,400105,13001
30/07/2020,ZAV680837,3,5535,Elementary Technology Ltd,210000,Furniture & Soft Furnishings  ,Furniture and Equipment,Corporate and Support Services,IT AVA Non - SLA,396.00,400105,13001
30/07/2020,ZAV680837,4,5535,Elementary Technology Ltd,210000,Furniture & Soft Furnishings  ,Furniture and Equipment,Corporate and Support Services,IT AVA Non - SLA,100.00,400105,13001
30/07/2020,ZAV680837,5,5535,Elementary Technology Ltd,210000,Furniture & Soft Furnishings  ,Furniture and Equipment,Corporate and Support Services,IT AVA Non - SLA,100.00,400105,13001
30/07/2020,ZAV680837,6,5535,Elementary Technology Ltd,210000,Furniture & Soft Furnishings  ,Furniture and Equipment,Corporate and Support Services,IT AVA Non - SLA,900.00,400105,13001
30/07/2020,ZAV680838,1,12402,VeryPC Ltd,270000,Information Communication Technology  ,Information and Communications Technology,Corporate and Support Services,IT AVA Non - SLA,"5,655.00",402001,13001
30/07/2020,ZAV680838,2,12402,VeryPC Ltd,270000,Information Communication Technology  ,Information and Communications Technology,Corporate and Support Services,IT AVA Non - SLA,963.90,402001,13001
30/07/2020,ZAV680838,3,12402,VeryPC Ltd,270000,Information Communication Technology  ,Information and Communications Technology,Corporate and Support Services,IT AVA Non - SLA,22.00,402001,13001
03/08/2020,ZAV680933,1,12351,Getech,270000,Information Communication Technology  ,Information and Communications Technology,Corporate and Support Services,IT AVA Non - SLA,510.00,402001,13001
03/08/2020,ZAV680933,2,12351,Getech,270000,Information Communication Technology  ,Information and Communications Technology,Corporate and Support Services,IT AVA Non - SLA,"6,270.00",402001,13001
03/08/2020,ZAV680933,3,12351,Getech,270000,Information Communication Technology  ,Information and Communications Technology,Corporate and Support Services,IT AVA Non - SLA,450.00,402001,13001
03/08/2020,ZAV680933,4,12351,Getech,270000,Information Communication Technology  ,Information and Communications Technology,Corporate and Support Services,IT AVA Non - SLA,150.00,402001,13001
03/08/2020,ZAV680933,5,12351,Getech,270000,Information Communication Technology  ,Information and Communications Technology,Corporate and Support Services,IT AVA Non - SLA,825.00,402001,13001
18/08/2020,ZAV681462,1,12351,Getech,270000,Information Communication Technology  ,Information and Communications Technology,Corporate and Support Services,IT AVA Non - SLA,578.00,402001,13001
18/08/2020,ZAV681462,2,12351,Getech,270000,Information Communication Technology  ,Information and Communications Technology,Corporate and Support Services,IT AVA Non - SLA,"5,950.00",402001,13001
18/08/2020,ZAV681462,3,12351,Getech,270000,Information Communication Technology  ,Information and Communications Technology,Corporate and Support Services,IT AVA Non - SLA,510.00,402001,13001
18/08/2020,ZAV681462,4,12351,Getech,270000,Information Communication Technology  ,Information and Communications Technology,Corporate and Support Services,IT AVA Non - SLA,170.00,402001,13001
18/08/2020,ZAV681462,5,12351,Getech,270000,Information Communication Technology  ,Information and Communications Technology,Corporate and Support Services,IT AVA Non - SLA,825.00,402001,13001
25/08/2020,ZAV681715,1,9441,Softcat Ltd,210000,Furniture & Soft Furnishings  ,Furniture and Equipment,Corporate and Support Services,IT AVA Non - SLA,"7,646.00",400105,13001
25/08/2020,ZAV681715,2,9441,Softcat Ltd,210000,Furniture & Soft Furnishings  ,Furniture and Equipment,Corporate and Support Services,IT AVA Non - SLA,"1,982.60",400105,13001
16/09/2020,ZAV682450,1,1162,RM Education plc,181800,Environmental Services Technical Equipment ,Furniture and Equipment,Corporate and Support Services,IT AVA Service,"6,578.92",400110,11417
17/09/2020,ZAV682524,1,12402,VeryPC Ltd,181800,Environmental Services Technical Equipment ,Furniture and Equipment,Corporate and Support Services,IT AVA Non - SLA,"5,783.40",400110,13001
17/09/2020,ZAV682524,2,12402,VeryPC Ltd,181800,Environmental Services Technical Equipment ,Furniture and Equipment,Corporate and Support Services,IT AVA Non - SLA,120.00,400110,13001
17/09/2020,ZAV682524,3,12402,VeryPC Ltd,181800,Environmental Services Technical Equipment ,Furniture and Equipment,Corporate and Support Services,IT AVA Non - SLA,423.28,400110,13001
17/09/2020,ZAV682524,4,12402,VeryPC Ltd,181800,Environmental Services Technical Equipment ,Furniture and Equipment,Corporate and Support Services,IT AVA Non - SLA,"1,380.00",400110,13001
17/09/2020,ZAV682524,5,12402,VeryPC Ltd,181800,Environmental Services Technical Equipment ,Furniture and Equipment,Corporate and Support Services,IT AVA Non - SLA,117.50,400110,13001
17/09/2020,ZAV682524,6,12402,VeryPC Ltd,181800,Environmental Services Technical Equipment ,Furniture and Equipment,Corporate and Support Services,IT AVA Non - SLA,"1,215.00",400110,13001
17/09/2020,ZAV682524,7,12402,VeryPC Ltd,181800,Environmental Services Technical Equipment ,Furniture and Equipment,Corporate and Support Services,IT AVA Non - SLA,197.61,400110,13001
21/09/2020,ZAV682617,1,1162,RM Education plc,181800,Environmental Services Technical Equipment ,Furniture and Equipment,Corporate and Support Services,IT AVA Service,"40,304.60",400110,11417
24/09/2020,ZAV682826,1,13068,addNetworks,181800,Environmental Services Technical Equipment ,Furniture and Equipment,Corporate and Support Services,IT AVA Non - SLA,"4,960.00",400110,13001
24/09/2020,ZAV682826,2,13068,addNetworks,181800,Environmental Services Technical Equipment ,Furniture and Equipment,Corporate and Support Services,IT AVA Non - SLA,"4,440.00",400110,13001
24/09/2020,ZAV682826,3,13068,addNetworks,181800,Environmental Services Technical Equipment ,Furniture and Equipment,Corporate and Support Services,IT AVA Non - SLA,15.00,400110,13001
24/09/2020,ZAV682826,4,13068,addNetworks,181800,Environmental Services Technical Equipment ,Furniture and Equipment,Corporate and Support Services,IT AVA Non - SLA,"4,380.00",400110,13001
03/07/2020,ZES679857,1,2718,Virgin Media Business,270000,Information Communication Technology  ,Information and Communications Technology,Corporate and Support Services,IT Infrastructure,"110,479.64",402002,11324
03/07/2020,ZES679857,2,2718,Virgin Media Business,270000,Information Communication Technology  ,Information and Communications Technology,Corporate and Support Services,IT Infrastructure,"96,121.67",402002,11324
08/07/2020,ZES680054,1,544,Phoenix Software Ltd,270000,Information Communication Technology  ,Information and Communications Technology,Corporate and Support Services,IT Infrastructure,"4,396.32",402001,11324
08/07/2020,ZES680054,2,544,Phoenix Software Ltd,270000,Information Communication Technology  ,Information and Communications Technology,Corporate and Support Services,IT Infrastructure,"6,422.02",402001,11324
28/07/2020,ZES680782,1,7684,CDW Ltd,270000,Information Communication Technology  ,Information and Communications Technology,Corporate and Support Services,IT Infrastructure,"1,747,139.45",402001,11324
30/07/2020,ZES680836,1,5814,Prosperon Networks Ltd,270000,Information Communication Technology  ,Information and Communications Technology,Corporate and Support Services,IT Infrastructure,951.00,402002,11324
30/07/2020,ZES680836,2,5814,Prosperon Networks Ltd,270000,Information Communication Technology  ,Information and Communications Technology,Corporate and Support Services,IT Infrastructure,"4,640.00",402002,11324
30/07/2020,ZES680836,3,5814,Prosperon Networks Ltd,270000,Information Communication Technology  ,Information and Communications Technology,Corporate and Support Services,IT Infrastructure,"5,514.00",402002,11324
30/07/2020,ZES680836,4,5814,Prosperon Networks Ltd,270000,Information Communication Technology  ,Information and Communications Technology,Corporate and Support Services,IT Infrastructure,"2,889.00",402002,11324
30/07/2020,ZES680836,5,5814,Prosperon Networks Ltd,270000,Information Communication Technology  ,Information and Communications Technology,Corporate and Support Services,IT Infrastructure,"6,136.00",402002,11324
18/08/2020,ZES681493,1,2718,Virgin Media Business,270000,Information Communication Technology  ,Information and Communications Technology,Corporate and Support Services,IT Infrastructure,"110,479.64",402064,11324
29/09/2020,ZES682926,1,13177,Trustmarque Solutions Ltd,270000,Information Communication Technology  ,Information and Communications Technology,Corporate and Support Services,IT School,"9,182.63",402001,11418
29/09/2020,ZES682926,2,13177,Trustmarque Solutions Ltd,270000,Information Communication Technology  ,Information and Communications Technology,Corporate and Support Services,IT School,"1,500.00",402001,11418
22/07/2020,ZHS680537,1,8323,Wilkinson Cowan Partnership Lt,390000,"Works - Construction, Repair & Maintenance  ",Capital Expenditure - Works,#N/A,#N/A,"10,372.73",200311,C.10923.002
16/09/2020,ZHS682486,1,13730,Greg Robinson,390000,Supplies and services,Supplies and services,#N/A,#N/A,"5,050.00",401600,C.10945.002
23/09/2020,ZHS682790,1,14356,Fraigneaux Ltd,390000,"Works - Construction, Repair & Maintenance  ",Capital Expenditure - Works,#N/A,#N/A,"5,950.00",200311,C.11617.033
07/09/2020,ZPC682120,1,11021,The Laurus Trust (Cheadle Hulm,261400,Human Resources Temporary & Agency Staff ,Agency Staff,Services to People,Pendlebury PRU,"2,875.50",100290,10318
07/09/2020,ZPC682120,2,11021,The Laurus Trust (Cheadle Hulm,261400,Human Resources Temporary & Agency Staff ,Agency Staff,Services to People,Cedars PRU,"1,917.00",100290,10317
07/09/2020,ZPC682120,3,11021,The Laurus Trust (Cheadle Hulm,261400,Human Resources Temporary & Agency Staff ,Agency Staff,Services to People,Pendlebury PRU,"2,875.50",100290,10318
07/09/2020,ZPC682120,4,11021,The Laurus Trust (Cheadle Hulm,261400,Human Resources Temporary & Agency Staff ,Agency Staff,Services to People,Cedars PRU,"1,917.00",100290,10317
07/09/2020,ZPC682120,5,11021,The Laurus Trust (Cheadle Hulm,261400,Human Resources Temporary & Agency Staff ,Agency Staff,Services to People,Pendlebury PRU,"2,875.50",100290,10318
07/09/2020,ZPC682120,6,11021,The Laurus Trust (Cheadle Hulm,261400,Human Resources Temporary & Agency Staff ,Agency Staff,Services to People,Cedars PRU,"1,917.00",100290,10317
07/09/2020,ZPC682120,7,11021,The Laurus Trust (Cheadle Hulm,261400,Human Resources Temporary & Agency Staff ,Agency Staff,Services to People,Pendlebury PRU,"2,875.50",100290,10318
07/09/2020,ZPC682120,8,11021,The Laurus Trust (Cheadle Hulm,261400,Human Resources Temporary & Agency Staff ,Agency Staff,Services to People,Cedars PRU,"1,917.00",100290,10317
04/09/2020,ZSA682064,1,1644,Tameside MBC,999999,Fees and Charges,Fees and Charges,Services to People,PH-Programme Mngmt,"17,522.00",402407,12732
28/09/2020,ZSH682886,1,12567,Building  Research  Establishm,999999,Fees and Charges,Fees and Charges,Services to Place,Housing Strategy,"5,908.00",401035,10955
31/07/2020,ZTR680894,1,12445,Barbour Logic Ltd,270000,Information Communication Technology  ,Information and Communications Technology,Services to Place,Car Parks Admin,"15,713.00",402001,10005
02/07/2020,ZZC679806,1,12793,Aspire Therapy Services Ltd,999999,Fees and Charges,Fees and Charges,Services to People,RAA - ASF Grant,"10,000.00",401035,12968
02/07/2020,ZZC679807,1,13335,Family Action,150000,Consultancy   ,Professional Fees,Services to People,RAA Adoption Count,"29,167.00",401020,12957
02/07/2020,ZZC679808,1,13335,Family Action,150000,Consultancy   ,Professional Fees,Services to People,RAA Adoption Count,"8,333.00",401020,12957
03/07/2020,ZZC679867,1,4771,Paritor Ltd,999999,Fees and Charges,Fees and Charges,Services to People,SI - Music Service,"5,177.06",401035,10417
07/07/2020,ZZC679981,1,12675,Tiptoes Child Therapy Services,999999,Fees and Charges,Fees and Charges,Services to People,RAA - ASF Grant,"10,000.00",401035,12968
07/07/2020,ZZC679984,1,13510,Children's Therapy Solutions,999999,Fees and Charges,Fees and Charges,Services to People,RAA - ASF Grant,"8,141.00",401035,12968
15/07/2020,ZZC680325,1,12646,Child in Mind Ltd,999999,Fees and Charges,Fees and Charges,Services to People,RAA - ASF Grant,"6,710.00",401035,12968
28/07/2020,ZZC680742,1,8766,ADOPTION MATTERS NORTHWEST,999999,Fees and Charges,Fees and Charges,Services to People,RAA - ASF Grant,"9,961.66",401035,12968
28/07/2020,ZZC680743,1,12723,Chrysalis Associates Ltd,999999,Fees and Charges,Fees and Charges,Services to People,RAA - ASF Grant,"5,000.00",401035,12968
03/08/2020,ZZC680946,1,13509,Cuffe and Lacey,150000,Consultancy   ,Professional Fees,Services to People,FP - Special Guardia,"6,003.00",401007,13012
10/08/2020,ZZC681216,1,12675,Tiptoes Child Therapy Services,999999,Fees and Charges,Fees and Charges,Services to People,RAA - ASF Grant,"5,000.00",401035,12968
10/08/2020,ZZC681219,1,12793,Aspire Therapy Services Ltd,999999,Fees and Charges,Fees and Charges,Services to People,RAA - ASF Grant,"10,000.00",401035,12968
10/08/2020,ZZC681220,1,12675,Tiptoes Child Therapy Services,999999,Fees and Charges,Fees and Charges,Services to People,RAA - ASF Grant,"5,000.00",401035,12968
14/08/2020,ZZC681400,1,12675,Tiptoes Child Therapy Services,999999,Fees and Charges,Fees and Charges,Services to People,RAA - ASF Grant,"5,000.00",401035,12968
26/08/2020,ZZC681750,1,13335,Family Action,#N/A,#N/A,#N/A,Services to People,RAA - ASF Grant,"19,800.00",400999,12968
26/08/2020,ZZC681751,1,12298,One Education Ltd,150000,Consultancy   ,Professional Fees,Services to People,RAA - Ctr Excellence,"15,210.00",401020,12967
08/09/2020,ZZC682190,1,12793,Aspire Therapy Services Ltd,999999,Fees and Charges,Fees and Charges,Services to People,RAA - ASF Grant,"5,000.00",401035,12968
08/09/2020,ZZC682191,1,8766,ADOPTION MATTERS NORTHWEST,999999,Fees and Charges,Fees and Charges,Services to People,RAA - ASF Grant,"5,000.00",401035,12968
10/09/2020,ZZC682259,1,12675,Tiptoes Child Therapy Services,999999,Fees and Charges,Fees and Charges,Services to People,RAA - ASF Grant,"5,000.00",401035,12968
18/09/2020,ZZC682586,1,8249,Creative Concern Ltd,190000,Facilities & Management Services  ,Office Expenses,Services to People,RAA Adoption Count,"23,775.50",400700,12957
18/09/2020,ZZC682587,1,12675,Tiptoes Child Therapy Services,999999,Fees and Charges,Fees and Charges,Services to People,RAA - ASF Grant,"5,000.00",401035,12968
18/09/2020,ZZC682588,1,12675,Tiptoes Child Therapy Services,999999,Fees and Charges,Fees and Charges,Services to People,RAA - ASF Grant,"5,000.00",401035,12968
21/09/2020,ZZC682637,1,1756,CoramBAAF,200000,Financial Services  ,Fees and Charges,Services to People,RAA Adoption Count,"11,105.55",402401,12957
22/09/2020,ZZC682698,1,12675,Tiptoes Child Therapy Services,999999,Fees and Charges,Fees and Charges,Services to People,RAA - ASF Grant,"11,290.00",401035,12968
01/07/2020,ZZH679751,1,628,Life Leisure,210000,Furniture & Soft Furnishings  ,Furniture and Equipment,Services to Place,Sports Client,"7,000.00",400115,11309
01/07/2020,ZZH679757,1,7025,CBRE Limited,150000,Consultancy   ,Professional Fees,Services to Place,Town Centre Devt Tea,"44,000.00",401007,10072
01/07/2020,ZZH679758,1,7025,CBRE Limited,150000,Consultancy   ,Professional Fees,Services to Place,Town Centre Devt Tea,"120,000.00",401007,10072
02/07/2020,ZZH679781,1,13684,University of Essex,150000,Consultancy   ,Professional Fees,Services to People,Partners In Practice,"5,294.00",401007,12997
02/07/2020,ZZH679787,1,10985,Broadstones School Ltd,261500,Human Resources Training & Conferences ,Fees and Charges,Services to People,SEN Independent Sch,"34,000.00",401024,10372
02/07/2020,ZZH679788,1,10985,Broadstones School Ltd,261500,Human Resources Training & Conferences ,Fees and Charges,Services to People,SEN Independent Sch,"34,000.00",401024,10372
02/07/2020,ZZH679789,1,10985,Broadstones School Ltd,261500,Human Resources Training & Conferences ,Fees and Charges,Services to People,SEN Independent Sch,"39,000.00",401024,10372
02/07/2020,ZZH679791,1,12268,The Orchards,261500,Human Resources Training & Conferences ,Fees and Charges,Services to People,OLA pupils,"5,851.00",401024,10371
02/07/2020,ZZH679811,1,3529,Totally Local Company Ltd,390000,"Works - Construction, Repair & Maintenance  ",Capital Expenditure - Works,#N/A,#N/A,"14,901.93",200304,C.00965.203
02/07/2020,ZZH679812,1,3529,Totally Local Company Ltd,390000,Supplies and services,Supplies and services,#N/A,#N/A,"8,606.32",401600,C.00621.203
02/07/2020,ZZH679829,1,11021,The Laurus Trust (Cheadle Hulm,150000,Consultancy   ,Professional Fees,Services to People,T.Union facilities,"46,220.00",401020,10472
02/07/2020,ZZH679838,1,13083,Abbotsound Ltd,#N/A,#N/A,#N/A,Services to People,COVID-19,"5,000.00",500999,12926
02/07/2020,ZZH679840,1,13083,Abbotsound Ltd,#N/A,#N/A,#N/A,Services to People,COVID-19,"80,000.00",500999,12926
02/07/2020,ZZH679841,1,13083,Abbotsound Ltd,#N/A,#N/A,#N/A,Services to People,COVID-19,"20,000.00",500999,12926
02/07/2020,ZZH679842,1,13083,Abbotsound Ltd,#N/A,#N/A,#N/A,Services to People,COVID-19,"20,000.00",500999,12926
02/07/2020,ZZH679843,1,13083,Abbotsound Ltd,#N/A,#N/A,#N/A,Services to People,COVID-19,"7,000.00",500999,12926
05/07/2020,ZZH679916,1,5214,WSP GROUP PLC,150000,Consultancy   ,Professional Fees,Services to Place,Design Frmwk Staff,"94,388.40",401020,11965
06/07/2020,ZZH679924,1,12268,Dunham Trust for The Orchards,261500,Human Resources Training & Conferences ,Fees and Charges,Services to People,OLA pupils,"5,851.00",401024,10371
06/07/2020,ZZH679955,1,4105,QA Ltd,260000,Human Resources  ,Staff Training,Corporate and Support Services,I.T Business Relat,"8,574.00",102020,13044
07/07/2020,ZZH679975,1,13860,Howard Lynn Property Ltd,261400,Human Resources Temporary & Agency Staff ,Agency Staff,Services to Place,Property Client Acct,"6,941.21",100290,12328
07/07/2020,ZZH679976,1,13223,A Pacini Ltd,261400,Human Resources Temporary & Agency Staff ,Agency Staff,Services to Place,Property Client Acct,"5,276.50",100290,12328
07/07/2020,ZZH680001,1,1644,Tameside MBC,999999,Fees and Charges,Fees and Charges,Services to People,Adults Management,"15,000.00",401035,11873
07/07/2020,ZZH680002,1,8926,P88003 Manor Medical Practice,320000,Social Community Care Supplies & Services  ,Care Payments,Services to People,PH-Healthcare,"2,944.00",530348,12735
07/07/2020,ZZH680002,2,8926,P88003 Manor Medical Practice,320000,Social Community Care Supplies & Services  ,Care Payments,Services to People,PH-Lifestyles,"2,944.00",530348,12737
07/07/2020,ZZH680002,3,8926,P88003 Manor Medical Practice,999999,Social Community Care Supplies & Services  ,Service Contract Payments,Services to People,PH-Sexual Health LES,"2,944.00",561704,12748
07/07/2020,ZZH680002,4,8926,P88003 Manor Medical Practice,320000,Social Community Care Supplies & Services  ,Care Payments,Services to People,PH-Sexual Health LES,"2,944.00",530348,12748
07/07/2020,ZZH680005,1,8956,P88005 The Family Surgery,320000,Social Community Care Supplies & Services  ,Care Payments,Services to People,PH-Healthcare,"4,292.00",530348,12735
07/07/2020,ZZH680005,2,8956,P88005 The Family Surgery,320000,Social Community Care Supplies & Services  ,Care Payments,Services to People,PH-Lifestyles,"4,452.00",530348,12737
07/07/2020,ZZH680006,1,8933,P88007 Cheadle Hulme Health Ce,320000,Social Community Care Supplies & Services  ,Care Payments,Services to People,PH-Healthcare,"5,300.00",530348,12735
07/07/2020,ZZH680006,2,8933,P88007 Cheadle Hulme Health Ce,320000,Social Community Care Supplies & Services  ,Care Payments,Services to People,PH-Lifestyles,"2,050.00",530348,12737
07/07/2020,ZZH680006,3,8933,P88007 Cheadle Hulme Health Ce,999999,Social Community Care Supplies & Services  ,Service Contract Payments,Services to People,PH-Sexual Health LES,"3,213.00",561704,12748
07/07/2020,ZZH680006,4,8933,P88007 Cheadle Hulme Health Ce,320000,Social Community Care Supplies & Services  ,Care Payments,Services to People,PH-Sexual Health LES,"3,228.00",530348,12748
07/07/2020,ZZH680009,1,8942,P88008 Heaton Mersey Medical P,320000,Social Community Care Supplies & Services  ,Care Payments,Services to People,PH-Healthcare,"3,120.00",530348,12735
07/07/2020,ZZH680009,2,8942,P88008 Heaton Mersey Medical P,320000,Social Community Care Supplies & Services  ,Care Payments,Services to People,PH-Lifestyles,"1,527.00",530348,12737
07/07/2020,ZZH680009,3,8942,P88008 Heaton Mersey Medical P,999999,Social Community Care Supplies & Services  ,Service Contract Payments,Services to People,PH-Sexual Health LES,"1,324.00",561704,12748
07/07/2020,ZZH680009,4,8942,P88008 Heaton Mersey Medical P,320000,Social Community Care Supplies & Services  ,Care Payments,Services to People,PH-Sexual Health LES,131.00,530348,12748
07/07/2020,ZZH680010,1,8963,P88011 Heaton Norris Health Ce,320000,Social Community Care Supplies & Services  ,Care Payments,Services to People,PH-Healthcare,"2,780.00",530348,12735
07/07/2020,ZZH680010,2,8963,P88011 Heaton Norris Health Ce,320000,Social Community Care Supplies & Services  ,Care Payments,Services to People,PH-Lifestyles,"3,307.00",530348,12737
07/07/2020,ZZH680010,3,8963,P88011 Heaton Norris Health Ce,999999,Social Community Care Supplies & Services  ,Service Contract Payments,Services to People,PH-Sexual Health LES,"2,044.00",561704,12748
07/07/2020,ZZH680010,4,8963,P88011 Heaton Norris Health Ce,320000,Social Community Care Supplies & Services  ,Care Payments,Services to People,PH-Sexual Health LES,"2,991.00",530348,12748
07/07/2020,ZZH680011,1,8950,P88012 Beech House Medical Pra,320000,Social Community Care Supplies & Services  ,Care Payments,Services to People,PH-Healthcare,"3,178.00",530348,12735
07/07/2020,ZZH680011,2,8950,P88012 Beech House Medical Pra,320000,Social Community Care Supplies & Services  ,Care Payments,Services to People,PH-Lifestyles,"1,952.00",530348,12737
07/07/2020,ZZH680011,3,8950,P88012 Beech House Medical Pra,999999,Social Community Care Supplies & Services  ,Service Contract Payments,Services to People,PH-Sexual Health LES,"2,697.00",561704,12748
07/07/2020,ZZH680011,4,8950,P88012 Beech House Medical Pra,320000,Social Community Care Supplies & Services  ,Care Payments,Services to People,PH-Sexual Health LES,"2,464.00",530348,12748
07/07/2020,ZZH680012,1,8947,P88013 Caritas General Practic,320000,Social Community Care Supplies & Services  ,Care Payments,Services to People,PH-Healthcare,"5,202.00",530348,12735
07/07/2020,ZZH680012,2,8947,P88013 Caritas General Practic,320000,Social Community Care Supplies & Services  ,Care Payments,Services to People,PH-Lifestyles,"3,092.00",530348,12737
07/07/2020,ZZH680012,3,8947,P88013 Caritas General Practic,999999,Social Community Care Supplies & Services  ,Service Contract Payments,Services to People,PH-Sexual Health LES,"4,521.00",561704,12748
07/07/2020,ZZH680012,4,8947,P88013 Caritas General Practic,320000,Social Community Care Supplies & Services  ,Care Payments,Services to People,PH-Sexual Health LES,"4,291.00",530348,12748
07/07/2020,ZZH680013,1,8949,P88015 Bramhall Health Centre,320000,Social Community Care Supplies & Services  ,Care Payments,Services to People,PH-Healthcare,"5,138.00",530348,12735
07/07/2020,ZZH680013,2,8949,P88015 Bramhall Health Centre,320000,Social Community Care Supplies & Services  ,Care Payments,Services to People,PH-Lifestyles,"1,956.00",530348,12737
07/07/2020,ZZH680014,1,8952,ann.smith24@nhs.net,320000,Social Community Care Supplies & Services  ,Care Payments,Services to People,PH-Healthcare,"5,423.00",530348,12735
07/07/2020,ZZH680014,2,8952,ann.smith24@nhs.net,320000,Social Community Care Supplies & Services  ,Care Payments,Services to People,PH-Lifestyles,"3,731.00",530348,12737
07/07/2020,ZZH680014,3,8952,ann.smith24@nhs.net,999999,Social Community Care Supplies & Services  ,Service Contract Payments,Services to People,PH-Sexual Health LES,"2,329.00",561704,12748
07/07/2020,ZZH680014,4,8952,ann.smith24@nhs.net,320000,Social Community Care Supplies & Services  ,Care Payments,Services to People,PH-Sexual Health LES,"3,312.00",530348,12748
07/07/2020,ZZH680015,1,8944,P88017 Chadsfield Medical Prac,320000,Social Community Care Supplies & Services  ,Care Payments,Services to People,PH-Healthcare,"2,837.00",530348,12735
07/07/2020,ZZH680015,2,8944,P88017 Chadsfield Medical Prac,320000,Social Community Care Supplies & Services  ,Care Payments,Services to People,PH-Lifestyles,"1,237.00",530348,12737
07/07/2020,ZZH680015,3,8944,P88017 Chadsfield Medical Prac,999999,Social Community Care Supplies & Services  ,Service Contract Payments,Services to People,PH-Sexual Health LES,519.00,561704,12748
07/07/2020,ZZH680015,4,8944,P88017 Chadsfield Medical Prac,320000,Social Community Care Supplies & Services  ,Care Payments,Services to People,PH-Sexual Health LES,"1,441.00",530348,12748
07/07/2020,ZZH680016,1,8945,P88018 Park View Group Practic,320000,Social Community Care Supplies & Services  ,Care Payments,Services to People,PH-Healthcare,"3,247.00",530348,12735
07/07/2020,ZZH680016,2,8945,P88018 Park View Group Practic,320000,Social Community Care Supplies & Services  ,Care Payments,Services to People,PH-Lifestyles,"3,049.00",530348,12737
07/07/2020,ZZH680016,3,8945,P88018 Park View Group Practic,999999,Social Community Care Supplies & Services  ,Service Contract Payments,Services to People,PH-Sexual Health LES,"3,987.00",561704,12748
07/07/2020,ZZH680016,4,8945,P88018 Park View Group Practic,320000,Social Community Care Supplies & Services  ,Care Payments,Services to People,PH-Sexual Health LES,"5,697.00",530348,12748
07/07/2020,ZZH680017,1,8932,P88019 Woodley Health Centre A,320000,Social Community Care Supplies & Services  ,Care Payments,Services to People,PH-Healthcare,"1,996.00",530348,12735
07/07/2020,ZZH680017,2,8932,P88019 Woodley Health Centre A,320000,Social Community Care Supplies & Services  ,Care Payments,Services to People,PH-Lifestyles,"1,680.00",530348,12737
07/07/2020,ZZH680017,3,8932,P88019 Woodley Health Centre A,999999,Social Community Care Supplies & Services  ,Service Contract Payments,Services to People,PH-Sexual Health LES,"1,139.00",561704,12748
07/07/2020,ZZH680017,4,8932,P88019 Woodley Health Centre A,320000,Social Community Care Supplies & Services  ,Care Payments,Services to People,PH-Sexual Health LES,"1,891.00",530348,12748
07/07/2020,ZZH680018,1,8948,P88020 Cheadle Medical Practic,320000,Social Community Care Supplies & Services  ,Care Payments,Services to People,PH-Healthcare,"4,619.00",530348,12735
07/07/2020,ZZH680018,2,8948,P88020 Cheadle Medical Practic,320000,Social Community Care Supplies & Services  ,Care Payments,Services to People,PH-Lifestyles,"2,492.00",530348,12737
07/07/2020,ZZH680018,3,8948,P88020 Cheadle Medical Practic,999999,Social Community Care Supplies & Services  ,Service Contract Payments,Services to People,PH-Sexual Health LES,"1,876.00",561704,12748
07/07/2020,ZZH680018,4,8948,P88020 Cheadle Medical Practic,320000,Social Community Care Supplies & Services  ,Care Payments,Services to People,PH-Sexual Health LES,"6,940.00",530348,12748
07/07/2020,ZZH680019,1,8964,P88021 Marple Medical Practice,320000,Social Community Care Supplies & Services  ,Care Payments,Services to People,PH-Healthcare,"2,901.00",530348,12735
07/07/2020,ZZH680019,2,8964,P88021 Marple Medical Practice,320000,Social Community Care Supplies & Services  ,Care Payments,Services to People,PH-Lifestyles,"1,300.00",530348,12737
07/07/2020,ZZH680019,3,8964,P88021 Marple Medical Practice,999999,Social Community Care Supplies & Services  ,Service Contract Payments,Services to People,PH-Sexual Health LES,"1,826.00",561704,12748
07/07/2020,ZZH680019,4,8964,P88021 Marple Medical Practice,320000,Social Community Care Supplies & Services  ,Care Payments,Services to People,PH-Sexual Health LES,"1,608.00",530348,12748
07/07/2020,ZZH680020,1,8960,P88023 Heald Green Health Cent,320000,Social Community Care Supplies & Services  ,Care Payments,Services to People,PH-Healthcare,"2,358.00",530348,12735
07/07/2020,ZZH680020,2,8960,P88023 Heald Green Health Cent,320000,Social Community Care Supplies & Services  ,Care Payments,Services to People,PH-Lifestyles,"1,260.00",530348,12737
07/07/2020,ZZH680020,3,8960,P88023 Heald Green Health Cent,999999,Social Community Care Supplies & Services  ,Service Contract Payments,Services to People,PH-Sexual Health LES,419.00,561704,12748
07/07/2020,ZZH680020,4,8960,P88023 Heald Green Health Cent,320000,Social Community Care Supplies & Services  ,Care Payments,Services to People,PH-Sexual Health LES,"2,301.00",530348,12748
07/07/2020,ZZH680021,1,8929,P88024 Gatley Medical Centre (,320000,Social Community Care Supplies & Services  ,Care Payments,Services to People,PH-Healthcare,"3,623.00",530348,12735
07/07/2020,ZZH680021,2,8929,P88024 Gatley Medical Centre (,320000,Social Community Care Supplies & Services  ,Care Payments,Services to People,PH-Lifestyles,"1,523.00",530348,12737
07/07/2020,ZZH680021,4,8929,P88024 Gatley Medical Centre (,320000,Social Community Care Supplies & Services  ,Care Payments,Services to People,PH-Sexual Health LES,"3,632.00",530348,12748
07/07/2020,ZZH680022,1,8921,P88025 Hulme Hall Medical Grou,320000,Social Community Care Supplies & Services  ,Care Payments,Services to People,PH-Healthcare,"4,501.00",530348,12735
07/07/2020,ZZH680022,2,8921,P88025 Hulme Hall Medical Grou,320000,Social Community Care Supplies & Services  ,Care Payments,Services to People,PH-Lifestyles,"2,125.00",530348,12737
07/07/2020,ZZH680022,3,8921,P88025 Hulme Hall Medical Grou,999999,Social Community Care Supplies & Services  ,Service Contract Payments,Services to People,PH-Sexual Health LES,"1,541.00",561704,12748
07/07/2020,ZZH680022,4,8921,P88025 Hulme Hall Medical Grou,320000,Social Community Care Supplies & Services  ,Care Payments,Services to People,PH-Sexual Health LES,"1,127.00",530348,12748
07/07/2020,ZZH680023,1,8914,P88026 Heaton Moor Medical Gro,320000,Social Community Care Supplies & Services  ,Care Payments,Services to People,PH-Healthcare,"16,134.00",530348,12735
07/07/2020,ZZH680023,2,8914,P88026 Heaton Moor Medical Gro,320000,Social Community Care Supplies & Services  ,Care Payments,Services to People,PH-Lifestyles,"11,168.00",530348,12737
07/07/2020,ZZH680023,3,8914,P88026 Heaton Moor Medical Gro,999999,Social Community Care Supplies & Services  ,Service Contract Payments,Services to People,PH-Sexual Health LES,"9,184.00",561704,12748
07/07/2020,ZZH680023,4,8914,P88026 Heaton Moor Medical Gro,320000,Social Community Care Supplies & Services  ,Care Payments,Services to People,PH-Sexual Health LES,"8,789.00",530348,12748
07/07/2020,ZZH680024,1,8928,P88031 Bracondale Medical Cent,320000,Social Community Care Supplies & Services  ,Care Payments,Services to People,PH-Healthcare,"2,055.00",530348,12735
07/07/2020,ZZH680024,2,8928,P88031 Bracondale Medical Cent,320000,Social Community Care Supplies & Services  ,Care Payments,Services to People,PH-Lifestyles,"1,493.00",530348,12737
07/07/2020,ZZH680024,3,8928,P88031 Bracondale Medical Cent,999999,Social Community Care Supplies & Services  ,Service Contract Payments,Services to People,PH-Sexual Health LES,"1,709.00",561704,12748
07/07/2020,ZZH680024,4,8928,P88031 Bracondale Medical Cent,320000,Social Community Care Supplies & Services  ,Care Payments,Services to People,PH-Sexual Health LES,"3,414.00",530348,12748
07/07/2020,ZZH680028,1,8922,P88042 Heald Green Health Cent,320000,Social Community Care Supplies & Services  ,Care Payments,Services to People,PH-Healthcare,"2,354.00",530348,12735
07/07/2020,ZZH680028,2,8922,P88042 Heald Green Health Cent,320000,Social Community Care Supplies & Services  ,Care Payments,Services to People,PH-Lifestyles,"1,250.00",530348,12737
07/07/2020,ZZH680028,3,8922,P88042 Heald Green Health Cent,999999,Social Community Care Supplies & Services  ,Service Contract Payments,Services to People,PH-Sexual Health LES,"1,340.00",561704,12748
07/07/2020,ZZH680028,4,8922,P88042 Heald Green Health Cent,320000,Social Community Care Supplies & Services  ,Care Payments,Services to People,PH-Sexual Health LES,"3,047.00",530348,12748
07/07/2020,ZZH680029,1,3789,"P88043 Brinnington Surgery, Br",320000,Social Community Care Supplies & Services  ,Care Payments,Services to People,PH-Healthcare,"2,774.00",530348,12735
07/07/2020,ZZH680029,2,3789,"P88043 Brinnington Surgery, Br",320000,Social Community Care Supplies & Services  ,Care Payments,Services to People,PH-Lifestyles,"5,160.00",530348,12737
07/07/2020,ZZH680029,3,3789,"P88043 Brinnington Surgery, Br",999999,Social Community Care Supplies & Services  ,Service Contract Payments,Services to People,PH-Sexual Health LES,"9,382.00",561704,12748
07/07/2020,ZZH680029,4,3789,"P88043 Brinnington Surgery, Br",320000,Social Community Care Supplies & Services  ,Care Payments,Services to People,PH-Sexual Health LES,"5,989.00",530348,12748
07/07/2020,ZZH680035,1,8930,P88625 Woodley Health Centre -,320000,Social Community Care Supplies & Services  ,Care Payments,Services to People,PH-Healthcare,"3,242.00",530348,12735
07/07/2020,ZZH680035,2,8930,P88625 Woodley Health Centre -,320000,Social Community Care Supplies & Services  ,Care Payments,Services to People,PH-Lifestyles,"2,329.00",530348,12737
07/07/2020,ZZH680035,3,8930,P88625 Woodley Health Centre -,999999,Social Community Care Supplies & Services  ,Service Contract Payments,Services to People,PH-Sexual Health LES,"2,161.00",561704,12748
07/07/2020,ZZH680035,4,8930,P88625 Woodley Health Centre -,320000,Social Community Care Supplies & Services  ,Care Payments,Services to People,PH-Sexual Health LES,986.00,530348,12748
07/07/2020,ZZH680036,1,8957,P88632 Stockport Medical Group,320000,Social Community Care Supplies & Services  ,Care Payments,Services to People,PH-Healthcare,"5,651.00",530348,12735
07/07/2020,ZZH680036,2,8957,P88632 Stockport Medical Group,320000,Social Community Care Supplies & Services  ,Care Payments,Services to People,PH-Lifestyles,"5,678.00",530348,12737
07/07/2020,ZZH680036,3,8957,P88632 Stockport Medical Group,999999,Social Community Care Supplies & Services  ,Service Contract Payments,Services to People,PH-Sexual Health LES,"9,600.00",561704,12748
07/07/2020,ZZH680036,4,8957,P88632 Stockport Medical Group,320000,Social Community Care Supplies & Services  ,Care Payments,Services to People,PH-Sexual Health LES,"10,082.00",530348,12748
07/07/2020,ZZH680038,1,6967,Wilde Consultants Ltd,150000,Consultancy   ,Professional Fees,#N/A,#N/A,"6,105.00",401007,C.01172.202
07/07/2020,ZZH680040,1,683,AECOM Limited,150000,Consultancy   ,Professional Fees,#N/A,#N/A,"34,890.00",401007,C.00620.201
07/07/2020,ZZH680041,1,6967,Wilde Consultants Ltd,150000,Consultancy   ,Professional Fees,#N/A,#N/A,"31,096.70",401007,C.01179.202
08/07/2020,ZZH680083,1,4708,The Dodd Group,390000,"Works - Construction, Repair & Maintenance  ",Repairs and Maintenance,#N/A,#N/A,"17,323.06",200121,C.10941
09/07/2020,ZZH680097,1,1339,Stockport NHS Foundation Trust,310000,Healthcare  ,Third party payments - Public Sector,Services to People,MOS - Mosaic Mngmnt,"26,000.00",500402,11430
09/07/2020,ZZH680102,1,3529,Totally Local Company Ltd,390000,Supplies and services,Supplies and services,#N/A,#N/A,"11,139.80",401600,C.00621.201
09/07/2020,ZZH680103,1,3529,Totally Local Company Ltd,390000,Supplies and services,Supplies and services,#N/A,#N/A,"9,727.80",401600,C.00621.203
09/07/2020,ZZH680105,1,3529,Totally Local Company Ltd,390000,Supplies and services,Supplies and services,#N/A,#N/A,"42,042.28",401600,C.00621.203
09/07/2020,ZZH680107,1,3529,Totally Local Company Ltd,390000,Supplies and services,Supplies and services,#N/A,#N/A,"25,352.00",401600,C.00950.203
09/07/2020,ZZH680108,1,3529,Totally Local Company Ltd,391114,"Works - Construction, Repair & Maintenance Buildings Surveys",Capital Expenditure - Fees,#N/A,#N/A,"5,843.09",200316,C.01273.202
09/07/2020,ZZH680111,1,6967,Wilde Consultants Ltd,150000,Consultancy   ,Professional Fees,Services to Place,Network Assets Staff,"10,080.00",401007,11959
09/07/2020,ZZH680138,1,4765,Johnnie Johnson Housing Ltd,320000,Social Community Care Supplies & Services  ,Care Payments,Services to People,Extra Care Hsg Block,"6,843.72",530328,12219
09/07/2020,ZZH680139,1,4765,Johnnie Johnson Housing Ltd,320000,Social Community Care Supplies & Services  ,Care Payments,Services to People,Extra Care Hsg Block,"6,843.72",530328,12219
10/07/2020,ZZH680157,1,35,CBC Computer Systems Ltd,#N/A,#N/A,#N/A,Corporate and Support Services,IT Infrastructure,945.00,400999,11324
10/07/2020,ZZH680157,2,35,CBC Computer Systems Ltd,#N/A,#N/A,#N/A,Corporate and Support Services,IT Infrastructure,725.00,400999,11324
10/07/2020,ZZH680157,3,35,CBC Computer Systems Ltd,#N/A,#N/A,#N/A,Corporate and Support Services,IT Infrastructure,"2,545.00",400999,11324
10/07/2020,ZZH680157,4,35,CBC Computer Systems Ltd,#N/A,#N/A,#N/A,Corporate and Support Services,IT Infrastructure,"3,715.00",400999,11324
10/07/2020,ZZH680157,5,35,CBC Computer Systems Ltd,#N/A,#N/A,#N/A,Corporate and Support Services,IT Infrastructure,"4,275.00",400999,11324
10/07/2020,ZZH680157,6,35,CBC Computer Systems Ltd,#N/A,#N/A,#N/A,Corporate and Support Services,IT Infrastructure,"1,580.00",400999,11324
10/07/2020,ZZH680157,7,35,CBC Computer Systems Ltd,#N/A,#N/A,#N/A,Corporate and Support Services,IT Infrastructure,196.00,400999,11324
10/07/2020,ZZH680158,1,2927,XMA Ltd,270000,Information Communication Technology  ,Information and Communications Technology,Corporate and Support Services,IT Infrastructure,"11,037.00",402001,11324
10/07/2020,ZZH680158,2,2927,XMA Ltd,270000,Information Communication Technology  ,Information and Communications Technology,Corporate and Support Services,IT Infrastructure,70.00,402001,11324
10/07/2020,ZZH680158,3,2927,XMA Ltd,270000,Information Communication Technology  ,Information and Communications Technology,Corporate and Support Services,IT Infrastructure,70.00,402001,11324
10/07/2020,ZZH680158,4,2927,XMA Ltd,270000,Information Communication Technology  ,Information and Communications Technology,Corporate and Support Services,IT Infrastructure,244.40,402001,11324
10/07/2020,ZZH680166,1,10657,Tales Toolkit Ltd,150000,Consultancy   ,Professional Fees,Services to People,SI M&B Grant,"5,600.00",401007,13041
10/07/2020,ZZH680167,1,14292,Full Support Healthcare Limite,#N/A,#N/A,#N/A,Services to People,PH-Health Protection,"6,420.00",400999,12739
10/07/2020,ZZH680167,2,14292,Full Support Healthcare Limite,#N/A,#N/A,#N/A,Services to People,PH-Health Protection,145.00,400999,12739
10/07/2020,ZZH680167,3,14292,Full Support Healthcare Limite,#N/A,#N/A,#N/A,Services to People,PH-Health Protection,575.00,400999,12739
10/07/2020,ZZH680167,4,14292,Full Support Healthcare Limite,#N/A,#N/A,#N/A,Services to People,PH-Health Protection,"2,445.00",400999,12739
10/07/2020,ZZH680167,5,14292,Full Support Healthcare Limite,#N/A,#N/A,#N/A,Services to People,PH-Health Protection,35.00,400999,12739
10/07/2020,ZZH680173,1,11539,Bolinda UK Limited,171113,Education Library Books ,Library Equipment,Corporate and Support Services,Library Dev & Res,"20,373.15",400202,11328
10/07/2020,ZZH680173,2,11539,Bolinda UK Limited,171113,Education Library Books ,Library Equipment,Corporate and Support Services,Library Dev & Res,"2,500.00",400202,11328
10/07/2020,ZZH680176,1,14289,Reveal Media Ltd,270000,Information Communication Technology  ,Information and Communications Technology,Services to Place,Car Parks Admin,765.00,402040,10005
10/07/2020,ZZH680176,2,14289,Reveal Media Ltd,270000,Information Communication Technology  ,Information and Communications Technology,Services to Place,Car Parks Admin,"2,880.00",402040,10005
10/07/2020,ZZH680176,3,14289,Reveal Media Ltd,270000,Information Communication Technology  ,Information and Communications Technology,Services to Place,Car Parks Admin,0.00,402040,10005
10/07/2020,ZZH680176,4,14289,Reveal Media Ltd,270000,Information Communication Technology  ,Information and Communications Technology,Services to Place,Car Parks Admin,0.00,402040,10005
10/07/2020,ZZH680176,5,14289,Reveal Media Ltd,270000,Information Communication Technology  ,Information and Communications Technology,Services to Place,Car Parks Admin,320.00,402040,10005
10/07/2020,ZZH680176,6,14289,Reveal Media Ltd,270000,Information Communication Technology  ,Information and Communications Technology,Services to Place,Car Parks Admin,"5,904.00",402040,10005
10/07/2020,ZZH680176,7,14289,Reveal Media Ltd,270000,Information Communication Technology  ,Information and Communications Technology,Services to Place,Car Parks Admin,20.00,402040,10005
12/07/2020,ZZH680179,1,1900,Broxap Ltd,350000,Street & Traffic Management  ,Fixtures and Fittings,Services to Place,Public Realm Inspect,"13,580.00",201202,10879
12/07/2020,ZZH680180,1,3529,Totally Local Company Ltd,350000,Street & Traffic Management  ,Fixtures and Fittings,Services to Place,Public Realm Inspect,"10,000.00",201202,10879
12/07/2020,ZZH680181,1,7802,Craemer UK Ltd,182020,Environmental Services Waste Management,Waste Management Equipment,Services to Place,Wheelie Bins,"7,140.00",400401,10864
12/07/2020,ZZH680186,1,3529,Totally Local Company Ltd,350000,Street & Traffic Management  ,Fixtures and Fittings,Services to Place,Public Realm Inspect,"10,000.00",201202,10879
13/07/2020,ZZH680236,1,3529,Totally Local Company Ltd,391114,"Works - Construction, Repair & Maintenance Buildings Surveys",Capital Expenditure - Fees,#N/A,#N/A,"5,581.24",200316,C.01289.202
13/07/2020,ZZH680246,1,13567,Pettitt Sports,240000,Horticultural  ,Grounds Maintenance,Services to Place,Play,"9,267.50",202032,11267
13/07/2020,ZZH680257,1,6748,GEORGE COX & SONS LTD,390000,Supplies and services,Supplies and services,#N/A,#N/A,"58,625.78",401600,C.00950.203
13/07/2020,ZZH680258,1,757,Transport for Greater Manchest,230000,Highway Equipment & Materials�   ,Highways Maintenance,#N/A,#N/A,"58,000.00",202054,C.01068.203
13/07/2020,ZZH680259,1,7820,GMCA - GMUTC,230000,Highway Equipment & Materials�   ,Highways Maintenance,#N/A,#N/A,"29,000.00",202054,C.01068.203
15/07/2020,ZZH680301,1,10985,Broadstones School Ltd,261500,Human Resources Training & Conferences ,Fees and Charges,Services to People,SEN Independent Sch,"34,000.00",401024,10372
15/07/2020,ZZH680318,1,7030,MANCHESTER CITY COUNCIL SHARED,202000,Financial Services Rents ,Rents,Services to People,RAA Adoption Count,"99,000.00",200700,12957
15/07/2020,ZZH680319,1,9511,TRAFFORD MB COUNCIL,999999,Third party payments - Public Sector,Third party payments - Public Sector,Services to People,RAA Adoption Count,"350,000.00",500303,12957
15/07/2020,ZZH680320,1,7167,Cheshire East Borough Council.,999999,Third party payments - Public Sector,Third party payments - Public Sector,Services to People,RAA Adoption Count,"300,000.00",500303,12957
15/07/2020,ZZH680321,1,3707,Salford City Council/Finance,999999,Third party payments - Public Sector,Third party payments - Public Sector,Services to People,RAA Adoption Count,"350,000.00",500303,12957
15/07/2020,ZZH680322,1,7030,MANCHESTER CITY COUNCIL SHARED,999999,Third party payments - Public Sector,Third party payments - Public Sector,Services to People,RAA Adoption Count,"650,000.00",500303,12957
15/07/2020,ZZH680341,1,11089,Ian Shaftoe,390000,Supplies and services,Supplies and services,#N/A,#N/A,"6,580.00",401600,C.01311.201
15/07/2020,ZZH680342,1,7820,GMCA - GMUTC,230000,Highway Equipment & Materials�   ,Highways Maintenance,#N/A,#N/A,"58,000.00",202054,C.01068.203
16/07/2020,ZZH680346,1,5131,FUTURE DESIGN CONSULTANTS,#N/A,#N/A,#N/A,Services to Place,Investing in Growth,"91,838.00",400999,10102
16/07/2020,ZZH680368,1,8729,IS Consultancy (UK) Ltd t/a,#N/A,#N/A,#N/A,Services to Place,Investing in Growth,"26,550.00",400999,10102
16/07/2020,ZZH680380,1,3529,Totally Local Company Ltd,390000,"Works - Construction, Repair & Maintenance  ",Capital Expenditure - Works,#N/A,#N/A,"31,747.65",200304,C.01068.203
17/07/2020,ZZH680389,1,6748,GEORGE COX & SONS LTD,390000,Supplies and services,Supplies and services,Services to Place,Highway Structs R+R,"8,720.85",401600,11975
17/07/2020,ZZH680401,1,9894,TLT LLP,390000,Supplies and services,Supplies and services,#N/A,#N/A,"30,000.00",401600,C.00718.203
17/07/2020,ZZH680402,1,9894,TLT LLP,390000,Supplies and services,Supplies and services,#N/A,#N/A,"45,000.00",401600,C.00718.203
17/07/2020,ZZH680415,1,2104,Central Manchester University,202000,Financial Services Rents ,Rents,Services to People,PH-Sexual Health,"4,172,910.00",200700,12736
17/07/2020,ZZH680428,1,6967,Wilde Consultants Ltd,150000,Consultancy   ,Professional Fees,#N/A,#N/A,"22,291.00",401007,C.01179.202
17/07/2020,ZZH680429,1,6967,Wilde Consultants Ltd,150000,Consultancy   ,Professional Fees,#N/A,#N/A,"5,290.00",401007,C.01179.202
17/07/2020,ZZH680432,1,6967,Wilde Consultants Ltd,150000,Consultancy   ,Professional Fees,#N/A,#N/A,"22,257.50",401007,C.01179.202
20/07/2020,ZZH680447,1,9862,Jacobs Consulting Engineers,150000,Consultancy   ,Professional Fees,Corporate and Support Services,Ins: Property Perils,"28,000.00",401020,11159
20/07/2020,ZZH680453,1,10349,InterWorks Europe Limited,270000,Information Communication Technology  ,Information and Communications Technology,Corporate and Support Services,Business Intelligenc,"15,628.00",402001,11872
20/07/2020,ZZH680454,1,11930,Mereside Education Trust Focus,261500,Human Resources Training & Conferences ,Fees and Charges,Services to People,SEN Specific support,"6,487.00",401024,10300
20/07/2020,ZZH680479,1,5292,NPOWER (Electricity),370000,Utilities   ,Utilities,Services to Place,Street Lighting Ener,"2,000,000.00",200514,12031
21/07/2020,ZZH680488,1,14011,Baltimore Consulting,#N/A,#N/A,#N/A,Services to People,MCA Grant,"31,220.00",100999,11691
21/07/2020,ZZH680492,1,14298,Lagan's Foundation,320000,Social Community Care Supplies & Services  ,Care Payments,Services to People,DP - Respite,"28,080.00",530335,11513
21/07/2020,ZZH680502,1,8246,DJS Research Limited,150000,Consultancy   ,Professional Fees,Services to Place,Town deal Cheadle,"6,500.00",401007,13057
22/07/2020,ZZH680535,1,11897,SENSE CAS FINANCE TEAM,#N/A,#N/A,#N/A,Services to People,DP - Respite,"6,858.00",400999,11513
22/07/2020,ZZH680566,1,683,AECOM Limited,150000,Consultancy   ,Professional Fees,#N/A,#N/A,"33,954.20",401007,C.00620.201
23/07/2020,ZZH680621,1,3529,Totally Local Company Ltd,240000,Horticultural  ,Grounds Maintenance,Services to Place,Special Project 6,"6,060.89",202032,11272
27/07/2020,ZZH680669,1,2927,XMA Ltd,#N/A,#N/A,#N/A,Corporate and Support Services,Bentax,"6,622.20",400999,11139
27/07/2020,ZZH680669,2,2927,XMA Ltd,#N/A,#N/A,#N/A,Corporate and Support Services,Bentax,42.00,400999,11139
27/07/2020,ZZH680669,3,2927,XMA Ltd,#N/A,#N/A,#N/A,Corporate and Support Services,Bentax,42.00,400999,11139
27/07/2020,ZZH680669,4,2927,XMA Ltd,#N/A,#N/A,#N/A,Corporate and Support Services,Bentax,146.64,400999,11139
27/07/2020,ZZH680669,5,2927,XMA Ltd,#N/A,#N/A,#N/A,Corporate and Support Services,Bentax,"1,521.00",400999,11139
27/07/2020,ZZH680712,1,1799,Stockport Homes,999999,Social Community Care Supplies & Services  ,Service Contract Payments,Corporate and Support Services,Public Libraries Gen,"13,963.32",561704,11329
27/07/2020,ZZH680721,1,6748,GEORGE COX & SONS LTD,390000,Supplies and services,Supplies and services,#N/A,#N/A,"27,424.96",401600,C.01310.203
28/07/2020,ZZH680754,1,12182,Ladybird Childcare Brinnington,240000,Horticultural  ,Grounds Maintenance,Services to People,Brinnigton CC,"10,000.00",202030,12295
28/07/2020,ZZH680779,1,7802,Craemer UK Ltd,182020,Environmental Services Waste Management,Waste Management Equipment,Services to Place,Wheelie Bins,"4,386.34",400401,10864
28/07/2020,ZZH680779,2,7802,Craemer UK Ltd,182020,Environmental Services Waste Management,Waste Management Equipment,Services to Place,Wheelie Bins,"4,270.91",400401,10864
28/07/2020,ZZH680790,1,1339,Stockport NHS Foundation Trust,261500,Human Resources Training & Conferences ,Fees and Charges,Services to People,Start Well Ops Staff,"19,225.00",401024,12880
29/07/2020,ZZH680792,1,14243,Keys PCE Ltd,261500,Human Resources Training & Conferences ,Fees and Charges,Services to People,SEN Independent Sch,"30,000.00",401024,10372
30/07/2020,ZZH680835,1,10798,Cludo UK Ltd,270000,Information Communication Technology  ,Information and Communications Technology,Corporate and Support Services,IT Systems,"7,000.00",402010,12503
30/07/2020,ZZH680843,1,13495,Pell Frischmann Consultants Lt,150000,Consultancy   ,Professional Fees,#N/A,#N/A,"20,867.20",401007,C.01231.202
30/07/2020,ZZH680844,1,5214,WSP GROUP PLC,150000,Consultancy   ,Professional Fees,Services to Place,Design Frmwk Staff,"49,421.65",401020,11965
30/07/2020,ZZH680845,1,1642,Blachere Illumination UK Ltd,290000,Arts & Leisure Services  ,Publicity and Promotion,Services to Place,Borough Festive Ligh,"71,332.57",401801,12654
30/07/2020,ZZH680855,1,3529,Totally Local Company Ltd,390000,"Works - Construction, Repair & Maintenance  ",Capital Expenditure - Works,#N/A,#N/A,"630,000.00",200304,C.01179.100
31/07/2020,ZZH680876,1,3529,Totally Local Company Ltd,390000,"Works - Construction, Repair & Maintenance  ",Capital Expenditure - Works,#N/A,#N/A,"336,000.00",200304,C.01179.100
31/07/2020,ZZH680882,1,3529,Totally Local Company Ltd,390000,"Works - Construction, Repair & Maintenance  ",Capital Expenditure - Works,#N/A,#N/A,"70,000.00",200304,C.01179.100
31/07/2020,ZZH680883,1,2025,BT Plc (Openreach),230000,Highway Equipment & Materials�   ,Highways Maintenance,#N/A,#N/A,"6,133.29",202055,C.01231.202
31/07/2020,ZZH680884,1,3529,Totally Local Company Ltd,390000,"Works - Construction, Repair & Maintenance  ",Capital Expenditure - Works,#N/A,#N/A,"132,128.31",200304,C.01179.100
31/07/2020,ZZH680885,1,3529,Totally Local Company Ltd,390000,"Works - Construction, Repair & Maintenance  ",Capital Expenditure - Works,#N/A,#N/A,"110,000.00",200304,C.01179.100
31/07/2020,ZZH680886,1,865,Bethell Construction Ltd,390000,Supplies and services,Supplies and services,#N/A,#N/A,"169,133.24",401600,C.01179.100
31/07/2020,ZZH680887,1,8202,The Fountain Company Ltd,390000,"Works - Construction, Repair & Maintenance  ",Repairs and Maintenance,Services to Place,St Peter's Square,"18,104.00",200126,11979
31/07/2020,ZZH680887,2,8202,The Fountain Company Ltd,390000,"Works - Construction, Repair & Maintenance  ",Repairs and Maintenance,Services to Place,St Peter's Square,"1,896.00",200126,11979
31/07/2020,ZZH680888,1,6967,Wilde Consultants Ltd,150000,Consultancy   ,Professional Fees,Services to Place,Network Assets Staff,"10,560.00",401007,11959
31/07/2020,ZZH680889,1,8646,MPH INSPECTION SERVICES,350000,Street & Traffic Management  ,Fixtures and Fittings,Services to Place,Struc Test of Column,"28,713.00",201202,11995
31/07/2020,ZZH680906,1,1799,Stockport Homes,150000,Consultancy   ,Professional Fees,Services to People,Preventative Tech'Gy,"375,500.00",401020,11011
31/07/2020,ZZH680907,1,1799,Stockport Homes,320000,Social Community Care Supplies & Services  ,Care Payments,Services to People,Extra Care Hsg Block,"18,808.00",530328,12219
03/08/2020,ZZH680926,1,433,Mott MacDonald Ltd,390000,"Works - Construction, Repair & Maintenance  ",Repairs and Maintenance,Services to Place,Land Dev-Werneth Os,"5,578.00",200123,11280
03/08/2020,ZZH680970,1,216,Manchester City Council,202100,Financial Services Subscriptions ,Third party payments - Public Sector,Corporate and Support Services,Electoral Registn,"8,466.00",500305,11102
05/08/2020,ZZH681038,1,10289,STOCKPORT SAMARITANS,320000,Social Community Care Supplies & Services  ,Third party payments - Private/Voluntary Sector,Services to People,PH-Mental Wellbeing,"10,000.00",500530,12734
05/08/2020,ZZH681040,1,304,Massey and Harris(Engineering),240000,Horticultural  ,Grounds Maintenance,#N/A,#N/A,"5,255.00",202032,C.10775
05/08/2020,ZZH681041,1,221,Ludus Leisure Ltd,240000,Horticultural  ,Grounds Maintenance,#N/A,#N/A,"7,227.00",202032,C.10775
05/08/2020,ZZH681042,1,364,Sutcliffe Play Ltd,240000,Horticultural  ,Grounds Maintenance,#N/A,#N/A,"19,437.60",202032,C.10775
05/08/2020,ZZH681059,1,7025,CBRE Limited,150000,Consultancy   ,Professional Fees,#N/A,#N/A,"30,000.00",401007,C.10932.004
05/08/2020,ZZH681065,1,3529,Totally Local Company Ltd,390000,"Works - Construction, Repair & Maintenance  ",Capital Expenditure - Works,#N/A,#N/A,"202,343.14",200304,C.01172.203
06/08/2020,ZZH681101,1,10786,Market Place Management Ltd,390000,Supplies and services,Supplies and services,Services to Place,Market General,"65,000.00",401600,10906
06/08/2020,ZZH681104,1,223,Groundwork Landscapes Ltd,390000,"Works - Construction, Repair & Maintenance  ",Repairs and Maintenance,Services to Place,Land Dev-Werneth Os,"1,344.00",200123,11280
06/08/2020,ZZH681104,2,223,Groundwork Landscapes Ltd,390000,"Works - Construction, Repair & Maintenance  ",Repairs and Maintenance,Services to Place,Land Dev-Werneth Os,"5,733.00",200123,11280
06/08/2020,ZZH681117,1,7819,Kings Chambers,280000,Legal Services  ,Legal Fees,Services to Place,Planning,"6,000.00",401016,12150
07/08/2020,ZZH681128,1,6748,GEORGE COX & SONS LTD,390000,Supplies and services,Supplies and services,Services to Place,Highway Structs R+R,"5,156.49",401600,11975
07/08/2020,ZZH681130,1,14317,Ridge and Partners LLP,150000,Consultancy   ,Professional Fees,Services to Place,Design Frmwk Staff,"141,120.00",401020,11965
07/08/2020,ZZH681132,1,3529,Totally Local Company Ltd,390000,"Works - Construction, Repair & Maintenance  ",Capital Expenditure - Works,#N/A,#N/A,"5,667.18",200304,C.01283.203
07/08/2020,ZZH681134,1,14317,Ridge and Partners LLP,150000,Consultancy   ,Professional Fees,Services to Place,Design Frmwk Staff,"112,125.00",401020,11965
07/08/2020,ZZH681135,1,14317,Ridge and Partners LLP,150000,Consultancy   ,Professional Fees,Services to Place,Design Frmwk Staff,"268,800.00",401020,11965
10/08/2020,ZZH681163,1,2927,XMA Ltd,181800,Environmental Services Technical Equipment ,Furniture and Equipment,Services to People,Start Well Ops Staff,"9,153.75",400110,12880
10/08/2020,ZZH681163,2,2927,XMA Ltd,181800,Environmental Services Technical Equipment ,Furniture and Equipment,Services to People,Start Well Ops Staff,52.50,400110,12880
10/08/2020,ZZH681163,3,2927,XMA Ltd,181800,Environmental Services Technical Equipment ,Furniture and Equipment,Services to People,Start Well Ops Staff,52.50,400110,12880
10/08/2020,ZZH681163,4,2927,XMA Ltd,181800,Environmental Services Technical Equipment ,Furniture and Equipment,Services to People,Start Well Ops Staff,183.30,400110,12880
10/08/2020,ZZH681163,5,2927,XMA Ltd,181800,Environmental Services Technical Equipment ,Furniture and Equipment,Services to People,Start Well Ops Staff,247.35,400110,12880
10/08/2020,ZZH681198,1,35,CBC Computer Systems Ltd,270000,Information Communication Technology  ,Information and Communications Technology,Services to People,SC - Leaving Care,"5,950.00",402001,11501
10/08/2020,ZZH681211,1,10363,Gala Lights Ltd,290000,Arts & Leisure Services  ,Publicity and Promotion,Services to Place,Borough Festive Ligh,"40,479.00",401801,12654
11/08/2020,ZZH681238,1,13860,Howard Lynn Property Ltd,261400,Human Resources Temporary & Agency Staff ,Agency Staff,Services to Place,Property Client Acct,"7,256.21",100290,12328
11/08/2020,ZZH681250,1,3529,Totally Local Company Ltd,390000,"Works - Construction, Repair & Maintenance  ",Capital Expenditure - Works,#N/A,#N/A,"52,852.92",200304,C.01328.203
11/08/2020,ZZH681251,1,12608,Liquidlogic Limited,270000,Information Communication Technology  ,Information and Communications Technology,Corporate and Support Services,I.T Business Relat,"7,500.00",402002,13044
12/08/2020,ZZH681269,1,865,Bethell Construction Ltd,390000,Supplies and services,Supplies and services,Services to Place,Highway Structs R+R,"9,313.89",401600,11975
13/08/2020,ZZH681352,1,6693,HAGS-SMP Ltd,240000,Horticultural  ,Grounds Maintenance,#N/A,#N/A,"12,528.00",202032,C.10775
13/08/2020,ZZH681353,1,7802,Craemer UK Ltd,182020,Environmental Services Waste Management,Waste Management Equipment,Services to Place,Wheelie Bins,"9,628.50",400401,10864
13/08/2020,ZZH681353,2,7802,Craemer UK Ltd,182020,Environmental Services Waste Management,Waste Management Equipment,Services to Place,Wheelie Bins,"7,140.00",400401,10864
13/08/2020,ZZH681356,1,9453,Gaist Solutions Ltd,391200,"Works - Construction, Repair & Maintenance Engineering ",Professional Fees,Services to Place,Transport Strategy,"10,200.00",401032,13060
13/08/2020,ZZH681358,1,7025,CBRE Limited,390000,Supplies and services,Supplies and services,#N/A,#N/A,"140,000.00",401600,C.00845.203
13/08/2020,ZZH681359,1,4272,Civica UK Ltd,181800,Environmental Services Technical Equipment ,Furniture and Equipment,Corporate and Support Services,Public Libraries Gen,"25,500.00",400111,11329
14/08/2020,ZZH681376,1,14317,Ridge and Partners LLP,150000,Consultancy   ,Professional Fees,Services to Place,Design Frmwk Staff,"55,770.00",401007,11965
14/08/2020,ZZH681377,1,6748,GEORGE COX & SONS LTD,390000,Supplies and services,Supplies and services,#N/A,#N/A,"67,873.60",401600,C.01250.203
14/08/2020,ZZH681382,1,6748,GEORGE COX & SONS LTD,390000,Supplies and services,Supplies and services,#N/A,#N/A,"5,301.33",401600,C.01166.203
17/08/2020,ZZH681413,1,14325,Ivanti UK Limited,270000,Information Communication Technology  ,Information and Communications Technology,Corporate and Support Services,IT Infrastructure,"7,389.90",402002,11324
17/08/2020,ZZH681413,2,14325,Ivanti UK Limited,270000,Information Communication Technology  ,Information and Communications Technology,Corporate and Support Services,IT Infrastructure,"4,105.50",402002,11324
18/08/2020,ZZH681447,1,1583,Tunstall Healthcare (UK) Ltd,210000,Furniture & Soft Furnishings  ,Furniture and Equipment,#N/A,#N/A,"2,040.00",400105,C.10004.001
18/08/2020,ZZH681447,2,1583,Tunstall Healthcare (UK) Ltd,210000,Furniture & Soft Furnishings  ,Furniture and Equipment,#N/A,#N/A,"3,750.00",400105,C.10004.001
18/08/2020,ZZH681447,3,1583,Tunstall Healthcare (UK) Ltd,210000,Furniture & Soft Furnishings  ,Furniture and Equipment,#N/A,#N/A,650.00,400105,C.10004.001
18/08/2020,ZZH681472,1,1177,Copyright Licensing Agency,150000,Consultancy   ,Professional Fees,Corporate and Support Services,Legal Fees Budget,"14,605.00",401020,12271
18/08/2020,ZZH681478,1,3291,Leica Geosystems Ltd,390000,Supplies and services,Supplies and services,Services to Place,D & I Team,"7,711.86",401600,11960
19/08/2020,ZZH681516,1,11962,PROQUEST INFORMATION & LEARNIN,171113,Education Library Books ,Library Equipment,Corporate and Support Services,Library Dev & Res,"6,662.66",400202,11328
19/08/2020,ZZH681522,1,1799,Stockport Homes,150000,Consultancy   ,Professional Fees,Services to Place,Neighbourhoods Team,"25,000.00",401020,10900
19/08/2020,ZZH681541,1,6748,GEORGE COX & SONS LTD,390000,Supplies and services,Supplies and services,#N/A,#N/A,"30,673.84",401600,C.01250.203
19/08/2020,ZZH681542,1,865,Bethell Construction Ltd,390000,Supplies and services,Supplies and services,#N/A,#N/A,"7,737.52",401600,C.01338.203
20/08/2020,ZZH681556,1,13445,All Pump Solutions,230000,Highway Equipment & Materials�   ,Highways Maintenance,Services to Place,Passages Rail & Marr,"13,801.67",202050,11998
20/08/2020,ZZH681557,1,6748,GEORGE COX & SONS LTD,390000,Supplies and services,Supplies and services,#N/A,#N/A,"227,360.45",401600,C.00950.203
21/08/2020,ZZH681595,1,7820,GMCA - GMUTC,230000,Highway Equipment & Materials�   ,Highways Maintenance,#N/A,#N/A,"35,450.31",202054,C.01172.203
21/08/2020,ZZH681597,1,3529,Totally Local Company Ltd,390000,Supplies and services,Supplies and services,#N/A,#N/A,"8,388.22",401600,C.00880.203
21/08/2020,ZZH681611,1,3529,Totally Local Company Ltd,290000,Arts & Leisure Services  ,Publicity and Promotion,Services to Place,Borough Festive Ligh,"32,927.80",401801,12654
21/08/2020,ZZH681612,1,3529,Totally Local Company Ltd,290000,Arts & Leisure Services  ,Publicity and Promotion,Services to Place,Borough Festive Ligh,"59,457.79",401801,12654
24/08/2020,ZZH681634,1,3529,Totally Local Company Ltd,390000,Supplies and services,Supplies and services,Services to Place,Special Project 9,"45,000.00",401600,11275
24/08/2020,ZZH681634,2,3529,Totally Local Company Ltd,390000,Supplies and services,Supplies and services,Services to Place,Special Project 9,"45,000.00",401600,11275
24/08/2020,ZZH681638,1,35,CBC Computer Systems Ltd,270000,Information Communication Technology  ,Information and Communications Technology,Services to People,SC - Care Matters,"5,950.00",402001,11768
24/08/2020,ZZH681660,1,9315,Carillion Morgan Sindall JV,390000,Supplies and services,Supplies and services,#N/A,#N/A,"300,000.00",401600,C.00880.203
26/08/2020,ZZH681758,1,2927,XMA Ltd,181800,Environmental Services Technical Equipment ,Furniture and Equipment,Services to People,What Works - SBSW,"8,960.70",400110,13027
26/08/2020,ZZH681758,2,2927,XMA Ltd,181800,Environmental Services Technical Equipment ,Furniture and Equipment,Services to People,What Works - SBSW,35.00,400110,13027
26/08/2020,ZZH681758,3,2927,XMA Ltd,181800,Environmental Services Technical Equipment ,Furniture and Equipment,Services to People,What Works - SBSW,35.00,400110,13027
26/08/2020,ZZH681763,1,6748,GEORGE COX & SONS LTD,390000,Supplies and services,Supplies and services,#N/A,#N/A,"13,927.00",401600,C.00966.203
26/08/2020,ZZH681765,1,6116,Atkins Limited,150000,Consultancy   ,Professional Fees,Services to Place,Transport Strategy,"27,975.00",401007,13060
26/08/2020,ZZH681767,1,82,Marwood Electrical Company Ltd,390000,"Works - Construction, Repair & Maintenance  ",Capital Expenditure - Works,#N/A,#N/A,926.86,200304,C.01198.203
26/08/2020,ZZH681767,2,82,Marwood Electrical Company Ltd,390000,"Works - Construction, Repair & Maintenance  ",Capital Expenditure - Works,#N/A,#N/A,"1,685.20",200304,C.01198.203
26/08/2020,ZZH681767,3,82,Marwood Electrical Company Ltd,390000,"Works - Construction, Repair & Maintenance  ",Capital Expenditure - Works,#N/A,#N/A,421.30,200304,C.01198.203
26/08/2020,ZZH681767,4,82,Marwood Electrical Company Ltd,390000,"Works - Construction, Repair & Maintenance  ",Capital Expenditure - Works,#N/A,#N/A,"2,746.29",200304,C.01198.203
26/08/2020,ZZH681767,5,82,Marwood Electrical Company Ltd,390000,"Works - Construction, Repair & Maintenance  ",Capital Expenditure - Works,#N/A,#N/A,88.59,200304,C.01198.203
26/08/2020,ZZH681767,6,82,Marwood Electrical Company Ltd,390000,"Works - Construction, Repair & Maintenance  ",Capital Expenditure - Works,#N/A,#N/A,301.23,200304,C.01198.203
26/08/2020,ZZH681768,1,6967,Wilde Consultants Ltd,150000,Consultancy   ,Professional Fees,Services to Place,Transport Strategy,"21,528.00",401007,13060
26/08/2020,ZZH681769,1,3529,Totally Local Company Ltd,240000,Horticultural  ,Grounds Maintenance,Services to Place,Policy-Rights Of Way,"10,000.00",202030,10088
27/08/2020,ZZH681790,1,82,Marwood Electrical Company Ltd,390000,"Works - Construction, Repair & Maintenance  ",Capital Expenditure - Works,#N/A,#N/A,"6,993.58",200304,C.01198.203
27/08/2020,ZZH681790,2,82,Marwood Electrical Company Ltd,390000,"Works - Construction, Repair & Maintenance  ",Capital Expenditure - Works,#N/A,#N/A,"80,047.00",200304,C.01198.203
27/08/2020,ZZH681790,3,82,Marwood Electrical Company Ltd,390000,"Works - Construction, Repair & Maintenance  ",Capital Expenditure - Works,#N/A,#N/A,"6,998.61",200304,C.01198.203
27/08/2020,ZZH681790,4,82,Marwood Electrical Company Ltd,390000,"Works - Construction, Repair & Maintenance  ",Capital Expenditure - Works,#N/A,#N/A,"5,622.96",200304,C.01198.203
27/08/2020,ZZH681790,5,82,Marwood Electrical Company Ltd,390000,"Works - Construction, Repair & Maintenance  ",Capital Expenditure - Works,#N/A,#N/A,"13,655.76",200304,C.01198.203
27/08/2020,ZZH681790,6,82,Marwood Electrical Company Ltd,390000,"Works - Construction, Repair & Maintenance  ",Capital Expenditure - Works,#N/A,#N/A,"10,241.82",200304,C.01198.203
27/08/2020,ZZH681790,7,82,Marwood Electrical Company Ltd,390000,"Works - Construction, Repair & Maintenance  ",Capital Expenditure - Works,#N/A,#N/A,"34,537.65",200304,C.01198.203
27/08/2020,ZZH681790,8,82,Marwood Electrical Company Ltd,390000,"Works - Construction, Repair & Maintenance  ",Capital Expenditure - Works,#N/A,#N/A,"5,067.30",200304,C.01198.203
27/08/2020,ZZH681790,9,82,Marwood Electrical Company Ltd,390000,"Works - Construction, Repair & Maintenance  ",Capital Expenditure - Works,#N/A,#N/A,680.04,200304,C.01198.203
27/08/2020,ZZH681790,10,82,Marwood Electrical Company Ltd,390000,"Works - Construction, Repair & Maintenance  ",Capital Expenditure - Works,#N/A,#N/A,"1,137.02",200304,C.01198.203
27/08/2020,ZZH681791,1,3529,Totally Local Company Ltd,150000,Consultancy   ,Professional Fees,#N/A,#N/A,"12,548.00",401007,C.01265.202
27/08/2020,ZZH681792,1,3529,Totally Local Company Ltd,390000,Supplies and services,Supplies and services,#N/A,#N/A,"6,357.28",401600,C.01410.203
27/08/2020,ZZH681794,1,3529,Totally Local Company Ltd,390000,Supplies and services,Supplies and services,#N/A,#N/A,"14,764.43",401600,C.01410.203
27/08/2020,ZZH681795,1,3529,Totally Local Company Ltd,390000,Supplies and services,Supplies and services,#N/A,#N/A,"6,144.64",401600,C.01410.203
27/08/2020,ZZH681802,1,11162,Kenny Waste Management Ltd,210000,Furniture & Soft Furnishings  ,Furniture and Equipment,Services to Place,Berevement Services,"12,000.00",400115,11285
28/08/2020,ZZH681826,1,6967,Wilde Consultants Ltd,150000,Consultancy   ,Professional Fees,Services to Place,Design Frmwk Staff,"38,160.00",401020,11965
28/08/2020,ZZH681843,1,6967,Wilde Consultants Ltd,150000,Consultancy   ,Professional Fees,Services to Place,Design Frmwk Staff,"38,160.00",401020,11965
28/08/2020,ZZH681844,1,6967,Wilde Consultants Ltd,150000,Consultancy   ,Professional Fees,Services to Place,Design Frmwk Staff,"40,560.00",401020,11965
28/08/2020,ZZH681845,1,6967,Wilde Consultants Ltd,150000,Consultancy   ,Professional Fees,Services to Place,Design Frmwk Staff,"40,560.00",401020,11965
28/08/2020,ZZH681846,1,6967,Wilde Consultants Ltd,150000,Consultancy   ,Professional Fees,Services to Place,Design Frmwk Staff,"16,560.00",401020,11965
28/08/2020,ZZH681847,1,6967,Wilde Consultants Ltd,150000,Consultancy   ,Professional Fees,Services to Place,Design Frmwk Staff,"16,560.00",401020,11965
28/08/2020,ZZH681848,1,6967,Wilde Consultants Ltd,150000,Consultancy   ,Professional Fees,Services to Place,Design Frmwk Staff,"16,560.00",401020,11965
28/08/2020,ZZH681849,1,6967,Wilde Consultants Ltd,150000,Consultancy   ,Professional Fees,Services to Place,Design Frmwk Staff,"38,160.00",401020,11965
28/08/2020,ZZH681850,1,6967,Wilde Consultants Ltd,150000,Consultancy   ,Professional Fees,Services to Place,Design Frmwk Staff,"38,160.00",401020,11965
28/08/2020,ZZH681851,1,6967,Wilde Consultants Ltd,150000,Consultancy   ,Professional Fees,Services to Place,Design Frmwk Staff,"38,160.00",401020,11965
01/09/2020,ZZH681856,1,6925,Ladybirds,240000,Horticultural  ,Grounds Maintenance,Services to People,Brinnigton CC,"10,000.00",202030,12295
01/09/2020,ZZH681875,1,6967,Wilde Consultants Ltd,150000,Consultancy   ,Professional Fees,Services to Place,Design Frmwk Staff,"21,600.00",401020,11965
01/09/2020,ZZH681876,1,6967,Wilde Consultants Ltd,150000,Consultancy   ,Professional Fees,Services to Place,Design Frmwk Staff,"18,960.00",401020,11965
01/09/2020,ZZH681877,1,6967,Wilde Consultants Ltd,150000,Consultancy   ,Professional Fees,Services to Place,Design Frmwk Staff,"8,280.00",401020,11965
01/09/2020,ZZH681894,1,3156,Creative Ideas In Print,320000,Social Community Care Supplies & Services  ,Care Payments,Corporate and Support Services,POD Communications,"18,945.00",530356,11323
01/09/2020,ZZH681895,1,3156,Creative Ideas In Print,320000,Social Community Care Supplies & Services  ,Care Payments,Corporate and Support Services,POD Communications,"43,977.00",530356,11323
02/09/2020,ZZH681905,1,13998,Lucid Outdoor Limited,181800,Environmental Services Technical Equipment ,Furniture and Equipment,#N/A,#N/A,"8,000.00",400110,C.10941
02/09/2020,ZZH681916,1,82,Marwood Electrical Company Ltd,390000,"Works - Construction, Repair & Maintenance  ",Capital Expenditure - Works,#N/A,#N/A,"9,732.00",200304,C.01220.203
02/09/2020,ZZH681916,2,82,Marwood Electrical Company Ltd,390000,"Works - Construction, Repair & Maintenance  ",Capital Expenditure - Works,#N/A,#N/A,"54,020.16",200304,C.01220.203
02/09/2020,ZZH681917,1,8106,Tarmac Trading Ltd,390000,Supplies and services,Supplies and services,#N/A,#N/A,"115,592.70",401600,C.01068.203
02/09/2020,ZZH681929,1,13808,Progress to Excellence Group,261500,Human Resources Training & Conferences ,Fees and Charges,Services to People,SEN Independent Sch,"175,000.00",401024,10372
02/09/2020,ZZH681933,1,82,Marwood Electrical Company Ltd,390000,"Works - Construction, Repair & Maintenance  ",Capital Expenditure - Works,#N/A,#N/A,"14,598.00",200304,C.01220.203
02/09/2020,ZZH681933,2,82,Marwood Electrical Company Ltd,390000,"Works - Construction, Repair & Maintenance  ",Capital Expenditure - Works,#N/A,#N/A,"65,274.36",200304,C.01220.203
02/09/2020,ZZH681933,3,82,Marwood Electrical Company Ltd,390000,"Works - Construction, Repair & Maintenance  ",Capital Expenditure - Works,#N/A,#N/A,"14,911.36",200304,C.01220.203
02/09/2020,ZZH681934,1,4509,Traffic Direct,390000,Supplies and services,Supplies and services,#N/A,#N/A,"84,348.75",401600,C.01410.201
02/09/2020,ZZH681937,1,3529,Totally Local Company Ltd,390000,Supplies and services,Supplies and services,#N/A,#N/A,"13,271.14",401600,C.01410.203
02/09/2020,ZZH681939,1,3529,Totally Local Company Ltd,390000,Supplies and services,Supplies and services,#N/A,#N/A,"13,344.24",401600,C.01410.203
02/09/2020,ZZH681942,1,7820,GMCA - GMUTC,230000,Highway Equipment & Materials�   ,Highways Maintenance,#N/A,#N/A,"35,450.31",202054,C.01172.203
02/09/2020,ZZH681953,1,1572,Theraposture Ltd,181800,Environmental Services Technical Equipment ,Furniture and Equipment,Services to People,SEN Equipment,"5,750.00",400110,10324
02/09/2020,ZZH681953,2,1572,Theraposture Ltd,181800,Environmental Services Technical Equipment ,Furniture and Equipment,Services to People,SEN Equipment,160.00,400110,10324
02/09/2020,ZZH681953,3,1572,Theraposture Ltd,181800,Environmental Services Technical Equipment ,Furniture and Equipment,Services to People,SEN Equipment,960.00,400110,10324
02/09/2020,ZZH681953,4,1572,Theraposture Ltd,181800,Environmental Services Technical Equipment ,Furniture and Equipment,Services to People,SEN Equipment,325.00,400110,10324
02/09/2020,ZZH681953,5,1572,Theraposture Ltd,181800,Environmental Services Technical Equipment ,Furniture and Equipment,Services to People,SEN Equipment,185.00,400110,10324
02/09/2020,ZZH681956,1,2859,G and S Smirthwaite,181800,Environmental Services Technical Equipment ,Furniture and Equipment,Services to People,SEN Equipment,"8,497.00",400110,10324
02/09/2020,ZZH681962,1,2927,XMA Ltd,270000,Information Communication Technology  ,Information and Communications Technology,Services to People,FDAC - Family D&A Ct,"5,376.42",402001,13058
02/09/2020,ZZH681962,2,2927,XMA Ltd,270000,Information Communication Technology  ,Information and Communications Technology,Services to People,FDAC - Family D&A Ct,21.00,402001,13058
02/09/2020,ZZH681962,3,2927,XMA Ltd,270000,Information Communication Technology  ,Information and Communications Technology,Services to People,FDAC - Family D&A Ct,21.00,402001,13058
02/09/2020,ZZH681962,4,2927,XMA Ltd,270000,Information Communication Technology  ,Information and Communications Technology,Services to People,FDAC - Family D&A Ct,48.88,402001,13058
03/09/2020,ZZH681984,1,5276,ESE Ltd,182020,Environmental Services Waste Management,Waste Management Equipment,Services to Place,Wheelie Bins,"2,784.00",400401,10864
03/09/2020,ZZH681984,2,5276,ESE Ltd,182020,Environmental Services Waste Management,Waste Management Equipment,Services to Place,Wheelie Bins,"3,657.50",400401,10864
06/09/2020,ZZH682084,1,216,Manchester City Council,390000,Supplies and services,Supplies and services,#N/A,#N/A,"34,950.00",401600,C.00880.203
06/09/2020,ZZH682086,1,3529,Totally Local Company Ltd,390000,"Works - Construction, Repair & Maintenance  ",Capital Expenditure - Works,#N/A,#N/A,"29,118.46",200304,C.01172.203
07/09/2020,ZZH682104,1,10674,Ortoo Technologies Ltd,200000,Financial Services  ,Fees and Charges,Services to People,SI - School Govern,"10,500.00",402401,10755
07/09/2020,ZZH682106,1,3529,Totally Local Company Ltd,#N/A,#N/A,#N/A,Services to People,Senior Management,"57,596.00",400999,12923
07/09/2020,ZZH682125,1,14346,Pennine Medical Supplies Ltd,#N/A,#N/A,#N/A,Corporate and Support Services,CSS Management,"6,000.00",400999,12499
08/09/2020,ZZH682162,1,12959,Apollo Home Healtcare,310000,Healthcare  ,Third party payments - Public Sector,Services to People,SEN Specific support,"14,332.50",500402,10300
08/09/2020,ZZH682163,1,8423,SMS Coaching Limited,261500,Human Resources Training & Conferences ,Fees and Charges,Services to People,SEN Independent Sch,"30,000.00",401024,10372
08/09/2020,ZZH682164,1,12269,PENARTH GROUP,261500,Human Resources Training & Conferences ,Fees and Charges,Services to People,SEN Independent Sch,"38,000.00",401024,10372
08/09/2020,ZZH682192,1,9715,NHS Stockport CCG,260000,Human Resources  ,Other Payments,Services to People,Modernisation,"16,960.31",100304,11876
09/09/2020,ZZH682194,1,2927,XMA Ltd,270000,Information Communication Technology  ,Information and Communications Technology,Services to People,SHV CSC Locality Lea,"5,376.42",402001,11514
09/09/2020,ZZH682194,2,2927,XMA Ltd,270000,Information Communication Technology  ,Information and Communications Technology,Services to People,SHV CSC Locality Lea,21.00,402001,11514
09/09/2020,ZZH682194,3,2927,XMA Ltd,270000,Information Communication Technology  ,Information and Communications Technology,Services to People,SHV CSC Locality Lea,21.00,402001,11514
09/09/2020,ZZH682196,1,780,J A Jones + Sons,210000,Furniture & Soft Furnishings  ,Furniture and Equipment,Services to Place,Special Project 9,324.00,400115,11275
09/09/2020,ZZH682196,2,780,J A Jones + Sons,210000,Furniture & Soft Furnishings  ,Furniture and Equipment,Services to Place,Special Project 9,224.00,400115,11275
09/09/2020,ZZH682196,3,780,J A Jones + Sons,210000,Furniture & Soft Furnishings  ,Furniture and Equipment,Services to Place,Special Project 9,"2,550.00",400115,11275
09/09/2020,ZZH682196,4,780,J A Jones + Sons,210000,Furniture & Soft Furnishings  ,Furniture and Equipment,Services to Place,Special Project 9,"2,450.00",400115,11275
09/09/2020,ZZH682196,5,780,J A Jones + Sons,210000,Furniture & Soft Furnishings  ,Furniture and Equipment,Services to Place,Special Project 9,"2,450.00",400115,11275
09/09/2020,ZZH682196,6,780,J A Jones + Sons,210000,Furniture & Soft Furnishings  ,Furniture and Equipment,Services to Place,Special Project 9,144.00,400115,11275
09/09/2020,ZZH682196,7,780,J A Jones + Sons,210000,Furniture & Soft Furnishings  ,Furniture and Equipment,Services to Place,Special Project 9,"1,330.00",400115,11275
09/09/2020,ZZH682196,8,780,J A Jones + Sons,210000,Furniture & Soft Furnishings  ,Furniture and Equipment,Services to Place,Special Project 9,"1,428.00",400115,11275
09/09/2020,ZZH682196,9,780,J A Jones + Sons,210000,Furniture & Soft Furnishings  ,Furniture and Equipment,Services to Place,Special Project 9,"1,428.00",400115,11275
09/09/2020,ZZH682196,10,780,J A Jones + Sons,210000,Furniture & Soft Furnishings  ,Furniture and Equipment,Services to Place,Special Project 9,"1,428.00",400115,11275
09/09/2020,ZZH682196,11,780,J A Jones + Sons,210000,Furniture & Soft Furnishings  ,Furniture and Equipment,Services to Place,Special Project 9,190.00,400115,11275
09/09/2020,ZZH682196,12,780,J A Jones + Sons,210000,Furniture & Soft Furnishings  ,Furniture and Equipment,Services to Place,Special Project 9,360.00,400115,11275
09/09/2020,ZZH682196,13,780,J A Jones + Sons,210000,Furniture & Soft Furnishings  ,Furniture and Equipment,Services to Place,Special Project 9,340.00,400115,11275
09/09/2020,ZZH682196,14,780,J A Jones + Sons,210000,Furniture & Soft Furnishings  ,Furniture and Equipment,Services to Place,Special Project 9,950.00,400115,11275
09/09/2020,ZZH682196,15,780,J A Jones + Sons,210000,Furniture & Soft Furnishings  ,Furniture and Equipment,Services to Place,Special Project 9,"2,400.00",400115,11275
09/09/2020,ZZH682196,16,780,J A Jones + Sons,210000,Furniture & Soft Furnishings  ,Furniture and Equipment,Services to Place,Special Project 9,204.00,400115,11275
09/09/2020,ZZH682196,17,780,J A Jones + Sons,210000,Furniture & Soft Furnishings  ,Furniture and Equipment,Services to Place,Special Project 9,"2,660.00",400115,11275
09/09/2020,ZZH682197,1,7802,Craemer UK Ltd,182020,Environmental Services Waste Management,Waste Management Equipment,Services to Place,Wheelie Bins,"9,628.50",400401,10864
09/09/2020,ZZH682197,2,7802,Craemer UK Ltd,182020,Environmental Services Waste Management,Waste Management Equipment,Services to Place,Wheelie Bins,"7,140.00",400401,10864
09/09/2020,ZZH682197,3,7802,Craemer UK Ltd,182020,Environmental Services Waste Management,Waste Management Equipment,Services to Place,Wheelie Bins,"8,657.25",400401,10864
09/09/2020,ZZH682197,4,7802,Craemer UK Ltd,182020,Environmental Services Waste Management,Waste Management Equipment,Services to Place,Wheelie Bins,"8,657.25",400401,10864
09/09/2020,ZZH682198,1,833,Egbert Taylor Ltd,182020,Environmental Services Waste Management,Waste Management Equipment,Services to Place,Bulk Container,"6,625.00",400401,10883
09/09/2020,ZZH682198,2,833,Egbert Taylor Ltd,182020,Environmental Services Waste Management,Waste Management Equipment,Services to Place,Bulk Container,"8,355.00",400401,10883
11/09/2020,ZZH682322,1,14346,Pennine Medical Supplies Ltd,#N/A,#N/A,#N/A,Corporate and Support Services,CSS Management,"8,000.00",400999,12499
11/09/2020,ZZH682325,1,9957,Marketing Stockport,#N/A,#N/A,#N/A,Services to Place,Economic Development,"15,150.00",400999,10103
11/09/2020,ZZH682327,1,3529,Totally Local Company Ltd,390000,"Works - Construction, Repair & Maintenance  ",Capital Expenditure - Works,#N/A,#N/A,"9,706.80",200304,C.01068.203
11/09/2020,ZZH682334,1,82,Marwood Electrical Company Ltd,390000,"Works - Construction, Repair & Maintenance  ",Capital Expenditure - Works,#N/A,#N/A,"14,999.88",200304,C.01220.203
11/09/2020,ZZH682334,2,82,Marwood Electrical Company Ltd,390000,"Works - Construction, Repair & Maintenance  ",Capital Expenditure - Works,#N/A,#N/A,"41,866.56",200304,C.01220.203
11/09/2020,ZZH682334,3,82,Marwood Electrical Company Ltd,390000,"Works - Construction, Repair & Maintenance  ",Capital Expenditure - Works,#N/A,#N/A,"3,885.57",200304,C.01220.203
11/09/2020,ZZH682336,1,3529,Totally Local Company Ltd,390000,Supplies and services,Supplies and services,#N/A,#N/A,"7,220.72",401600,C.01410.203
11/09/2020,ZZH682337,1,3529,Totally Local Company Ltd,390000,Supplies and services,Supplies and services,#N/A,#N/A,"5,097.52",401600,C.01410.203
11/09/2020,ZZH682339,1,2927,XMA Ltd,270000,Information Communication Technology  ,Information and Communications Technology,Services to People,HTV CSC Locality Lea,"5,376.42",402001,11516
11/09/2020,ZZH682339,2,2927,XMA Ltd,270000,Information Communication Technology  ,Information and Communications Technology,Services to People,HTV CSC Locality Lea,21.00,402001,11516
11/09/2020,ZZH682339,3,2927,XMA Ltd,270000,Information Communication Technology  ,Information and Communications Technology,Services to People,HTV CSC Locality Lea,21.00,402001,11516
14/09/2020,ZZH682350,1,9232,Reed Specialist Recruitment Lt,320000,Social Community Care Supplies & Services  ,Care Payments,Services to People,DP - Respite,"10,811.84",530358,11513
14/09/2020,ZZH682369,1,2927,XMA Ltd,270000,Information Communication Technology  ,Information and Communications Technology,Services to People,CB/MW CSC Locality L,"5,376.42",402001,12188
14/09/2020,ZZH682369,2,2927,XMA Ltd,270000,Information Communication Technology  ,Information and Communications Technology,Services to People,CB/MW CSC Locality L,21.00,402001,12188
14/09/2020,ZZH682369,3,2927,XMA Ltd,270000,Information Communication Technology  ,Information and Communications Technology,Services to People,CB/MW CSC Locality L,21.00,402001,12188
14/09/2020,ZZH682376,1,12182,Ladybird Childcare Brinnington,240000,Horticultural  ,Grounds Maintenance,Services to People,Brinnigton CC,"10,000.00",202030,12295
14/09/2020,ZZH682394,1,683,AECOM Limited,150000,Consultancy   ,Professional Fees,Services to Place,Design Frmwk Staff,"17,088.00",401020,11965
14/09/2020,ZZH682395,1,683,AECOM Limited,150000,Consultancy   ,Professional Fees,Services to Place,Design Frmwk Staff,"35,462.40",401020,11965
15/09/2020,ZZH682398,1,8241,Zellis,270000,Information Communication Technology  ,Information and Communications Technology,Corporate and Support Services,POD Core Staffing,"15,506.40",402001,12590
15/09/2020,ZZH682410,1,14056,VideoBooth Systems Ltd,181800,Environmental Services Technical Equipment ,Furniture and Equipment,Services to Place,Investing in Growth,"5,391.00",400113,10102
15/09/2020,ZZH682416,1,13808,Progress to Excellence Group,261500,Human Resources Training & Conferences ,Fees and Charges,Services to People,SEN Independent Sch,"12,075.00",401024,10372
15/09/2020,ZZH682417,1,13808,Progress to Excellence Group,261500,Human Resources Training & Conferences ,Fees and Charges,Services to People,SEN Independent Sch,"13,800.00",401024,10372
15/09/2020,ZZH682418,1,13808,Progress to Excellence Group,261500,Human Resources Training & Conferences ,Fees and Charges,Services to People,SEN Independent Sch,"13,800.00",401024,10372
15/09/2020,ZZH682419,1,893,Hatters Business Gifts,290000,Arts & Leisure Services  ,Publicity and Promotion,Services to People,FP - Fostering Staff,"5,084.00",401801,11489
16/09/2020,ZZH682460,1,178,Trafford Council,999999,Third party payments - Public Sector,Third party payments - Public Sector,Corporate and Support Services,U-Probation Serv-Gen,"8,521.45",500303,10966
16/09/2020,ZZH682480,1,13428,GT 3 Architects Ltd,150000,Consultancy   ,Professional Fees,Services to Place,Sports Trust,"7,100.00",401020,11294
16/09/2020,ZZH682485,1,12351,Getech,270000,Information Communication Technology  ,Information and Communications Technology,Services to Place,Contin Educ Service,"32,747.00",402001,10511
16/09/2020,ZZH682485,2,12351,Getech,270000,Information Communication Technology  ,Information and Communications Technology,Services to Place,Contin Educ Service,"3,980.00",402001,10511
16/09/2020,ZZH682485,3,12351,Getech,270000,Information Communication Technology  ,Information and Communications Technology,Services to Place,Contin Educ Service,"3,400.00",402001,10511
16/09/2020,ZZH682485,4,12351,Getech,270000,Information Communication Technology  ,Information and Communications Technology,Services to Place,Contin Educ Service,"2,771.00",402001,10511
17/09/2020,ZZH682493,1,4272,Civica UK Ltd,390000,Supplies and services,Supplies and services,Corporate and Support Services,Bentax,"18,379.13",401600,11139
17/09/2020,ZZH682534,1,628,Life Leisure,150000,Consultancy   ,Professional Fees,Services to People,PH-Local Pilot,"19,322.70",401020,13047
17/09/2020,ZZH682540,1,6748,GEORGE COX & SONS LTD,390000,Supplies and services,Supplies and services,#N/A,#N/A,"9,780.76",401600,C.01221.203
18/09/2020,ZZH682557,1,1722,The Together Trust Centre,261500,Human Resources Training & Conferences ,Fees and Charges,Services to People,SEN NMSS School Fees,"36,900.00",401024,12710
18/09/2020,ZZH682559,1,1722,The Together Trust Centre,261500,Human Resources Training & Conferences ,Fees and Charges,Services to People,SEN NMSS School Fees,"42,000.00",401024,12710
18/09/2020,ZZH682565,1,1722,The Together Trust Centre,320000,Social Community Care Supplies & Services  ,Care Payments,Services to People,DP - Respite,"20,737.04",530358,11513
21/09/2020,ZZH682626,1,12182,Ladybird Childcare Brinnington,290000,Arts & Leisure Services  ,Publicity and Promotion,Services to People,EPEC Programme,"9,360.00",401801,13037
21/09/2020,ZZH682640,1,7820,GMCA - GMUTC,390000,"Works - Construction, Repair & Maintenance  ",Capital Expenditure - Works,#N/A,#N/A,"21,451.33",200304,C.00992.203
21/09/2020,ZZH682641,1,3529,Totally Local Company Ltd,390000,"Works - Construction, Repair & Maintenance  ",Capital Expenditure - Works,#N/A,#N/A,"16,838.10",200304,C.01328.203
21/09/2020,ZZH682644,1,6748,GEORGE COX & SONS LTD,390000,"Works - Construction, Repair & Maintenance  ",Capital Expenditure - Works,#N/A,#N/A,"9,680.39",200304,C.01316.203
21/09/2020,ZZH682645,1,14369,CommonPlace Digital Limited,150000,Consultancy   ,Professional Fees,#N/A,#N/A,"9,500.00",401007,C.01312.201
21/09/2020,ZZH682646,1,14369,CommonPlace Digital Limited,150000,Consultancy   ,Professional Fees,#N/A,#N/A,"9,500.00",401007,C.01313.201
21/09/2020,ZZH682647,1,7820,GMCA - GMUTC,391114,"Works - Construction, Repair & Maintenance Buildings Surveys",Capital Expenditure - Fees,#N/A,#N/A,"30,410.00",200316,C.01231.203
21/09/2020,ZZH682650,1,6748,GEORGE COX & SONS LTD,390000,Supplies and services,Supplies and services,#N/A,#N/A,"17,722.83",401600,C.01415.203
21/09/2020,ZZH682651,1,3529,Totally Local Company Ltd,390000,Supplies and services,Supplies and services,#N/A,#N/A,"6,966.14",401600,C.01410.203
21/09/2020,ZZH682652,1,3529,Totally Local Company Ltd,390000,Supplies and services,Supplies and services,#N/A,#N/A,"7,461.88",401600,C.01410.203
21/09/2020,ZZH682656,1,3529,Totally Local Company Ltd,391114,"Works - Construction, Repair & Maintenance Buildings Surveys",Capital Expenditure - Fees,#N/A,#N/A,"22,839.72",200316,C.01364.203
21/09/2020,ZZH682657,1,6748,GEORGE COX & SONS LTD,391114,"Works - Construction, Repair & Maintenance Buildings Surveys",Capital Expenditure - Fees,#N/A,#N/A,"7,577.79",200316,C.01273.201
22/09/2020,ZZH682668,1,3529,Totally Local Company Ltd,240000,Horticultural  ,Grounds Maintenance,Services to Place,Special Project 6,"14,861.00",202032,11272
22/09/2020,ZZH682669,1,1342,UK Container Maintenance Ltd,182020,Environmental Services Waste Management,Waste Management Equipment,Services to Place,Bulk Container,"11,264.00",400401,10883
23/09/2020,ZZH682729,1,12269,PENARTH GROUP,261500,Human Resources Training & Conferences ,Fees and Charges,Services to People,SEN Independent Sch,"19,882.75",401024,10372
23/09/2020,ZZH682754,1,12182,Ladybird Childcare Brinnington,261500,Human Resources Training & Conferences ,Fees and Charges,Services to People,Early Years SEN,"12,108.60",401024,12942
23/09/2020,ZZH682755,1,13249,Viaduct Care CIC,260000,Human Resources  ,Other Payments,Services to People,Proactive Care,"65,015.50",100304,12829
23/09/2020,ZZH682756,1,10855,Bloom Procurement Services,260000,Human Resources  ,Staff Training,Services to People,iBCF,"93,625.00",102020,13000
23/09/2020,ZZH682791,1,1722,The Together Trust Centre,320000,Social Community Care Supplies & Services  ,Care Payments,Services to People,DP - Respite,"23,291.76",530335,11513
23/09/2020,ZZH682795,1,6748,GEORGE COX & SONS LTD,391114,"Works - Construction, Repair & Maintenance Buildings Surveys",Capital Expenditure - Fees,#N/A,#N/A,"12,328.54",200316,C.00885.203
23/09/2020,ZZH682797,1,683,AECOM Limited,150000,Consultancy   ,Professional Fees,#N/A,#N/A,"11,361.40",401007,C.00718.203
24/09/2020,ZZH682823,1,1092,CUBIC TRANSPORTATION SYSTEM,181800,Environmental Services Technical Equipment ,Furniture and Equipment,Services to Place,Highways-Road Safety,"10,315.96",400110,11970
24/09/2020,ZZH682835,1,6748,GEORGE COX & SONS LTD,390000,Supplies and services,Supplies and services,#N/A,#N/A,"8,217.21",401600,C.01330.203
24/09/2020,ZZH682836,1,6748,GEORGE COX & SONS LTD,390000,Supplies and services,Supplies and services,#N/A,#N/A,"6,642.20",401600,C.01330.203
24/09/2020,ZZH682838,1,6748,GEORGE COX & SONS LTD,390000,Supplies and services,Supplies and services,#N/A,#N/A,"60,000.00",401600,C.01415.203
24/09/2020,ZZH682839,1,6748,GEORGE COX & SONS LTD,390000,Supplies and services,Supplies and services,#N/A,#N/A,"20,000.00",401600,C.01415.203
25/09/2020,ZZH682850,1,62,Insight Direct (UK) Ltd,270000,Information Communication Technology  ,Information and Communications Technology,Corporate and Support Services,IT Infrastructure,"25,011.80",402001,11324
25/09/2020,ZZH682850,2,62,Insight Direct (UK) Ltd,270000,Information Communication Technology  ,Information and Communications Technology,Corporate and Support Services,IT Infrastructure,"8,609.14",402001,11324
25/09/2020,ZZH682850,3,62,Insight Direct (UK) Ltd,270000,Information Communication Technology  ,Information and Communications Technology,Corporate and Support Services,IT Infrastructure,"2,186.07",402001,11324
25/09/2020,ZZH682850,4,62,Insight Direct (UK) Ltd,270000,Information Communication Technology  ,Information and Communications Technology,Corporate and Support Services,IT Infrastructure,"3,179.74",402001,11324
25/09/2020,ZZH682864,1,14250,Fieldfisher,390000,Supplies and services,Supplies and services,#N/A,#N/A,"10,000.00",401600,C.00718.203
25/09/2020,ZZH682879,1,3529,Totally Local Company Ltd,390000,Supplies and services,Supplies and services,Services to Place,Emergency Tree Works,"9,660.00",401600,11168
25/09/2020,ZZH682883,1,6748,GEORGE COX & SONS LTD,390000,Supplies and services,Supplies and services,#N/A,#N/A,"18,904.85",401600,C.01179.203
25/09/2020,ZZH682884,1,6748,GEORGE COX & SONS LTD,390000,Supplies and services,Supplies and services,#N/A,#N/A,"89,166.26",401600,C.01179.201
28/09/2020,ZZH682906,1,13294,Collective Space,260000,Human Resources  ,Staff Training,Services to People,CYP ASYE,"5,417.00",102020,12953
28/09/2020,ZZH682907,1,13860,Howard Lynn Property Ltd,261400,Human Resources Temporary & Agency Staff ,Agency Staff,Services to Place,Property Client Acct,"6,142.50",100290,12328
28/09/2020,ZZH682919,1,6748,GEORGE COX & SONS LTD,390000,"Works - Construction, Repair & Maintenance  ",Capital Expenditure - Works,#N/A,#N/A,"60,000.00",200304,C.01308.201
28/09/2020,ZZH682920,1,8106,Tarmac Trading Ltd,390000,Supplies and services,Supplies and services,#N/A,#N/A,"43,816.31",401600,C.01172.203
28/09/2020,ZZH682922,1,8106,Tarmac Trading Ltd,391114,"Works - Construction, Repair & Maintenance Buildings Surveys",Capital Expenditure - Fees,#N/A,#N/A,"35,502.04",200316,C.01231.202
29/09/2020,ZZH682942,1,544,Phoenix Software Ltd,270000,Information Communication Technology  ,Information and Communications Technology,Corporate and Support Services,IT Systems,"2,784.00",402001,12503
29/09/2020,ZZH682942,2,544,Phoenix Software Ltd,270000,Information Communication Technology  ,Information and Communications Technology,Corporate and Support Services,IT Systems,"96,085.44",402001,12503
29/09/2020,ZZH682942,3,544,Phoenix Software Ltd,270000,Information Communication Technology  ,Information and Communications Technology,Corporate and Support Services,IT Systems,"1,507.68",402001,12503
29/09/2020,ZZH682942,4,544,Phoenix Software Ltd,270000,Information Communication Technology  ,Information and Communications Technology,Corporate and Support Services,IT Systems,"40,220.64",402001,12503
29/09/2020,ZZH682942,5,544,Phoenix Software Ltd,270000,Information Communication Technology  ,Information and Communications Technology,Corporate and Support Services,IT Systems,894.36,402001,12503
29/09/2020,ZZH682942,6,544,Phoenix Software Ltd,270000,Information Communication Technology  ,Information and Communications Technology,Corporate and Support Services,IT Systems,566.10,402001,12503
29/09/2020,ZZH682942,7,544,Phoenix Software Ltd,270000,Information Communication Technology  ,Information and Communications Technology,Corporate and Support Services,IT Systems,"38,880.00",402001,12503
29/09/2020,ZZH682942,8,544,Phoenix Software Ltd,270000,Information Communication Technology  ,Information and Communications Technology,Corporate and Support Services,IT Systems,"19,680.00",402001,12503
29/09/2020,ZZH682942,9,544,Phoenix Software Ltd,270000,Information Communication Technology  ,Information and Communications Technology,Corporate and Support Services,IT Systems,597.00,402001,12503
29/09/2020,ZZH682942,10,544,Phoenix Software Ltd,270000,Information Communication Technology  ,Information and Communications Technology,Corporate and Support Services,IT Systems,"8,759.12",402001,12503
29/09/2020,ZZH682942,11,544,Phoenix Software Ltd,270000,Information Communication Technology  ,Information and Communications Technology,Corporate and Support Services,IT Systems,82.80,402001,12503
29/09/2020,ZZH682942,12,544,Phoenix Software Ltd,270000,Information Communication Technology  ,Information and Communications Technology,Corporate and Support Services,IT Systems,"2,966.40",402001,12503
29/09/2020,ZZH682942,13,544,Phoenix Software Ltd,270000,Information Communication Technology  ,Information and Communications Technology,Corporate and Support Services,IT Systems,"10,876.80",402001,12503
29/09/2020,ZZH682942,14,544,Phoenix Software Ltd,270000,Information Communication Technology  ,Information and Communications Technology,Corporate and Support Services,IT Systems,42.00,402001,12503
29/09/2020,ZZH682942,15,544,Phoenix Software Ltd,270000,Information Communication Technology  ,Information and Communications Technology,Corporate and Support Services,IT Systems,"3,480.00",402001,12503
29/09/2020,ZZH682942,16,544,Phoenix Software Ltd,270000,Information Communication Technology  ,Information and Communications Technology,Corporate and Support Services,IT Systems,65.76,402001,12503
29/09/2020,ZZH682942,17,544,Phoenix Software Ltd,270000,Information Communication Technology  ,Information and Communications Technology,Corporate and Support Services,IT Systems,32.40,402001,12503
29/09/2020,ZZH682942,18,544,Phoenix Software Ltd,270000,Information Communication Technology  ,Information and Communications Technology,Corporate and Support Services,IT Systems,"17,496.00",402001,12503
29/09/2020,ZZH682942,19,544,Phoenix Software Ltd,270000,Information Communication Technology  ,Information and Communications Technology,Corporate and Support Services,IT Systems,"399,258.00",402001,12503
29/09/2020,ZZH682942,20,544,Phoenix Software Ltd,270000,Information Communication Technology  ,Information and Communications Technology,Corporate and Support Services,IT Systems,"425,319.84",402001,12503
29/09/2020,ZZH682942,21,544,Phoenix Software Ltd,270000,Information Communication Technology  ,Information and Communications Technology,Corporate and Support Services,IT Systems,"156,365.04",402001,12503
29/09/2020,ZZH682943,1,1206,PricewaterhouseCoopers LLP,150000,Consultancy   ,Professional Fees,Services to Place,Sports Trust,"235,000.00",401007,11294
29/09/2020,ZZH682947,1,6748,GEORGE COX & SONS LTD,390000,"Works - Construction, Repair & Maintenance  ",Repairs and Maintenance,Services to Place,Car Park Maintenance,"7,098.22",200123,12510
29/09/2020,ZZH682958,1,6748,GEORGE COX & SONS LTD,390000,Supplies and services,Supplies and services,#N/A,#N/A,"167,005.96",401600,C.01356.203
29/09/2020,ZZH682959,1,6748,GEORGE COX & SONS LTD,390000,Supplies and services,Supplies and services,#N/A,#N/A,"62,598.95",401600,C.01373.203
29/09/2020,ZZH682961,1,6748,GEORGE COX & SONS LTD,390000,Supplies and services,Supplies and services,#N/A,#N/A,"129,489.51",401600,C.01179.100
29/09/2020,ZZH682962,1,6748,GEORGE COX & SONS LTD,390000,Supplies and services,Supplies and services,#N/A,#N/A,"107,954.88",401600,C.01273.203
30/09/2020,ZZH682982,1,6748,GEORGE COX & SONS LTD,390000,Supplies and services,Supplies and services,#N/A,#N/A,"469,159.25",401600,C.01356.203
30/09/2020,ZZH682983,1,6748,GEORGE COX & SONS LTD,390000,Supplies and services,Supplies and services,Services to Place,Rechargeable work,"286,422.66",401600,11961
30/09/2020,ZZH682987,1,6748,GEORGE COX & SONS LTD,390000,Supplies and services,Supplies and services,#N/A,#N/A,"300,000.00",401600,C.01174.203
30/09/2020,ZZH682997,1,13884,Crossroads Together,320000,Social Community Care Supplies & Services  ,Care Payments,Services to People,DP - Respite,"11,088.00",530335,11513
30/09/2020,ZZH682998,1,3529,Totally Local Company Ltd,381600,Vehicle Management Leasing ,Leasing /Transport Hire,Services to People,SC - Broadfield,"20,889.00",300401,11443
30/09/2020,ZZH683004,1,6748,GEORGE COX & SONS LTD,390000,Supplies and services,Supplies and services,#N/A,#N/A,"10,000.00",401600,C.00885.203
30/09/2020,ZZH683005,1,6748,GEORGE COX & SONS LTD,390000,Supplies and services,Supplies and services,#N/A,#N/A,"10,104.55",401600,C.01356.203
30/09/2020,ZZH683006,1,6748,GEORGE COX & SONS LTD,390000,Supplies and services,Supplies and services,#N/A,#N/A,"11,584.30",401600,C.01310.203
30/09/2020,ZZH683008,1,6967,Wilde Consultants Ltd,150000,Consultancy   ,Professional Fees,Services to Place,Design Frmwk Staff,"82,680.00",401020,11965
30/09/2020,ZZH683020,1,13233,MetDesk Limited,181800,Environmental Services Technical Equipment ,Furniture and Equipment,Services to Place,Gritting,"6,096.00",400110,12033
30/09/2020,ZZH683031,1,2104,Central Manchester University,202000,Financial Services Rents ,Rents,Services to People,PH-Sexual Health,"395,698.25",200700,12736
30/09/2020,ZZH683032,1,6748,GEORGE COX & SONS LTD,390000,"Works - Construction, Repair & Maintenance  ",Capital Expenditure - Works,#N/A,#N/A,"120,000.00",200304,C.01308.201
30/09/2020,ZZH683033,1,3529,Totally Local Company Ltd,390000,Supplies and services,Supplies and services,#N/A,#N/A,"9,296.86",401600,C.00880.203
30/09/2020,ZZH683034,1,8106,Tarmac Trading Ltd,390000,Supplies and services,Supplies and services,#N/A,#N/A,"14,565.45",401600,C.01356.203
30/09/2020,ZZH683047,1,6748,GEORGE COX & SONS LTD,390000,Supplies and services,Supplies and services,#N/A,#N/A,"470,000.00",401600,C.01316.203
30/09/2020,ZZH683053,1,8106,Tarmac Trading Ltd,390000,Supplies and services,Supplies and services,#N/A,#N/A,"21,574.74",401600,C.01316.203
30/09/2020,ZZH683054,1,3529,Totally Local Company Ltd,390000,Supplies and services,Supplies and services,#N/A,#N/A,"13,576.14",401600,C.00880.203
30/09/2020,ZZH683055,1,6748,GEORGE COX & SONS LTD,390000,Supplies and services,Supplies and services,#N/A,#N/A,"134,164.92",401600,C.01231.203
30/09/2020,ZZH683056,1,6748,GEORGE COX & SONS LTD,390000,Supplies and services,Supplies and services,#N/A,#N/A,"46,286.52",401600,C.01324.203
30/09/2020,ZZH683057,1,10007,KPMG LLP ADVISORY,201100,Financial Services Audit ,Professional Fees,Corporate and Support Services,U-Misc Fin-Corp Mang,"11,600.00",401003,10971
06/07/2020,ZZP679931,1,6116,Atkins Limited,390000,"Works - Construction, Repair & Maintenance  ",Repairs and Maintenance,#N/A,#N/A,"8,700.00",200123,C.10423.184
23/07/2020,ZZP680578,1,1113,Maysand Ltd,390000,"Works - Construction, Repair & Maintenance  ",Repairs and Maintenance,#N/A,#N/A,"60,512.84",200123,C.11502.124
03/08/2020,ZZP680963,1,13069,W H Good Ltd,390000,"Works - Construction, Repair & Maintenance  ",Repairs and Maintenance,#N/A,#N/A,"45,946.85",200123,C.10387.192
03/08/2020,ZZP680964,1,2426,GR Bayley Ltd,390000,"Works - Construction, Repair & Maintenance  ",Repairs and Maintenance,#N/A,#N/A,"35,443.02",200123,C.10324.237
06/08/2020,ZZP681077,1,2356,Clancy Consulting Ltd,390000,"Works - Construction, Repair & Maintenance  ",Repairs and Maintenance,#N/A,#N/A,"21,650.00",200123,C.10423.184
07/08/2020,ZZP681145,1,1799,Stockport Homes,390000,"Works - Construction, Repair & Maintenance  ",Capital Expenditure - Works,#N/A,#N/A,"8,458.00",200311,C.10424.239
10/08/2020,ZZP681182,1,13207,H Bell & Sons Ltd,390000,"Works - Construction, Repair & Maintenance  ",Repairs and Maintenance,#N/A,#N/A,"33,049.31",200123,C.10425.241
10/08/2020,ZZP681185,1,13207,H Bell & Sons Ltd,390000,"Works - Construction, Repair & Maintenance  ",Repairs and Maintenance,#N/A,#N/A,"35,733.98",200123,C.10297.108
11/08/2020,ZZP681255,1,9973,Truline Construction & Interio,390000,"Works - Construction, Repair & Maintenance  ",Repairs and Maintenance,#N/A,#N/A,"29,571.37",200123,C.11504.013
18/08/2020,ZZP681454,1,14277,Conlon Construction Ltd,390000,"Works - Construction, Repair & Maintenance  ",Repairs and Maintenance,#N/A,#N/A,"354,733.17",200123,C.10408.109
21/08/2020,ZZP681605,1,14335,ANSA Elevators Ltd,390000,"Works - Construction, Repair & Maintenance  ",Repairs and Maintenance,#N/A,#N/A,"82,050.00",200123,C.11508.001
25/08/2020,ZZP681686,1,3529,Totally Local Company Ltd,390000,Supplies and services,Supplies and services,Services to Place,Property Client Acct,"8,975.98",401600,12328
27/08/2020,ZZP681782,1,14208,Broadgrove Planning and Develo,390000,"Works - Construction, Repair & Maintenance  ",Repairs and Maintenance,#N/A,#N/A,"19,950.00",200123,C.10423.184
07/09/2020,ZZP682122,1,13069,W H Good Ltd,390000,"Works - Construction, Repair & Maintenance  ",Repairs and Maintenance,#N/A,#N/A,"40,433.00",200123,C.10387.192
11/09/2020,ZZP682295,1,2438,J Greenwood (Builders) Ltd,390000,"Works - Construction, Repair & Maintenance  ",Capital Expenditure - Works,#N/A,#N/A,"66,905.45",200301,C.10422.240
11/09/2020,ZZP682305,1,14335,ANSA Elevators Ltd,390000,"Works - Construction, Repair & Maintenance  ",Repairs and Maintenance,#N/A,#N/A,"490,000.00",200123,C.11502.084
16/09/2020,ZZP682488,1,8733,ELF SOFTWARE LTD,390000,"Works - Construction, Repair & Maintenance  ",Repairs and Maintenance,Services to Place,Property Client Acct,"5,499.96",200123,12328
08/07/2020,ZZS680056,1,4272,Civica UK Ltd,999999,Social Community Care Supplies & Services  ,Service Contract Payments,Corporate and Support Services,U-Coroners Ct-Genera,"6,375.00",561704,10965
